Workbook

Sheet SEIR+Ebola
A1: time (days) | B1: S | C1: E | D1: I | E1: E_anal | F1: I_anal | G1: Sdot | H1: Edot | I1: Idot | J1: dt | K1: Contact Rate(m) | L1: alpha | M1: beta | N1: mu | O1: beta+mu | P1: gamma | Q1: delta | R1: gamma+delta | S1: q
A2: 0 | B2: 320000000 | C2: 1 | D2: 0 | E2: =$O$8*EXP($K$8*A2)+$P$8*EXP($L$8*A2) -> 1 | F2: =$Q$8*EXP($K$8*A2)+$R$8*EXP($L$8*A2) -> 0 | G2: =-$L$2*B2*D2-$S$2*$L$2*B2*C2 -> -0.064 | H2: =-G2-$O$2*C2 -> -0.036 | I2: =$M$2*C2-$R$2*D2 -> 0.1 | J2: 1 | K2: 0.32 | L2: =K2/B2 -> 1e-09 | M2: 0.1 | N2: 0 | O2: =M2+N2 -> 0.1 | P2: 0.2 | Q2: 0.1 | R2: =P2+Q2 -> 0.3 | S2: 0.2
A3: =A2+$J$2 -> 1 | B3: =B2+G2*$J$2 -> 319999999.9 | C3: =MAX(C2+H2*$J$2,0) -> 0.964 | D3: =MAX(D2+I2*$J$2,0) -> 0.1 | E3: 0.9788385583 | F3: 0.08523345244 | G3: -0.09369599998 | H3: -0.002704000019 | I3: 0.0664
A4: 2 | B4: 319999999.8 | C4: 0.961296 | D4: 0.1664 | E4: 0.9813720957 | F4: 0.1476806621 | G4: -0.1147709439 | H4: 0.01864134394 | I4: 0.0462096 | K4: R0 | L4: Sfin_sim | M4: Casesl_sim | N4: Cases | P4: W | Q4: Q | R4: G | S4: Δ
A5: 3 | B5: 319999999.7 | C5: 0.9799373439 | D5: 0.2126096 | E5: 1.000884312 | F5: 0.1949706999 | G5: -0.1307510619 | H5: 0.03275732751 | I5: 0.03421085439 | K5: =K2*(M2+S2*R2)/(R2*O2) -> 1.706666667 | L5: =B600 -> 96706198.64 | M5: =B2-B600 -> 223293801.4 | N5: =B2*casefrac((K2/R2)*(D2/B2)+K5*C2/B2,K5) -> 222132540.8 | P5: =M2/(O2) -> 1 | Q5: =S2*K2/O2 -> 0.64 | R5: =R2/K2 -> 0.9375 | S5: =P5+Q5*R5-R5 -> 0.6625
A6: 4 | B6: 319999999.6 | C6: 1.012694671 | D6: 0.2468204544 | E6: 1.03288184 | F6: 0.2322820759 | G6: -0.1437950042 | H6: 0.04252553705 | I6: 0.02722333083
A7: 5 | B7: 319999999.5 | C7: 1.055220208 | D7: 0.2740437852 | E7: 1.074378821 | F7: 0.2631354808 | G7: -0.1552281043 | H7: 0.0497060835 | I7: 0.02330888528 | K7: lam1 | L7: lam2 | M7: sqrt | N7: beq | O7: A1 | P7: A2 | Q7: C1 | R7: C2 | S7: cases LINMOD
A8: 6 | B8: 319999999.3 | C8: 1.104926292 | D8: 0.2973526705 | E8: 1.123412842 | F8: 0.2899303947 | G8: -0.1658681369 | H8: 0.05537550768 | I8: 0.02128682805 | K8: =-0.5*((N8+R2)+M8) -> -0.3903150917 | L8: =-0.5*((N8+R2)-M8) -> 0.05431509171 | M8: =SQRT((N8-R2)^2+4*M2*L2*B2) -> 0.4446301834 | N8: =O2-B2*L2*S2 -> 0.036 | O8: =(D2/M2-C2/(R2+L8))/(1/(R2+K8)-1/(R2+L8)) -> 0.2031240682 | P8: =C2-O8 -> 0.7968759318 | Q8: =M2*O8/(R2+K8) -> -0.2249060089 | R8: =M2*P8/(R2+L8) -> 0.2249060089 | S8: =B2*(C2*(M2/R2+S2)+D2*O2/R2)/(O2/L2-B2*(M2/R2+S2)) -> -2.41509434
A9: 7 | B9: 319999999.1 | C9: 1.1603018 | D9: 0.3186394985 | E9: 1.178717466 | F9: 0.3143083357 | G9: -0.1762239542 | H9: 0.06019377427 | I9: 0.0204383304 | S9: =-(D2+C2*(P5+Q5*R5))/S5 -> -2.41509434
A10: 8 | B10: 319999999 | C10: 1.220495574 | D10: 0.339077829 | E10: 1.239500775 | F10: 0.3373987739 | G10: -0.1866166214 | H10: 0.06456706399 | I10: 0.02032620871 | K10: r_E | L10: r_I | M10: fizzle | O10: u_E | P10: u_I
A11: 9 | B11: 319999998.8 | C11: 1.285062638 | D11: 0.3594040377 | E11: 1.305295672 | F11: 0.3599856312 | G11: -0.1972533001 | H11: 0.06874703633 | I11: 0.0206850525 | K11: =r_e(K2,M2,N2,R2,S2) -> 0.486015724 | L11: =R2/(R2+K2-K2*K11) -> 0.6458905656 | M11: =(K11^C2)*(L11^D2) -> 0.486015724 | O11: =(N2+M2*P11)/(O2+S2*K2) -> 0.234521576 | P11: =P2/(P2+K2) -> 0.3846153846
A12: 10 | B12: 319999998.6 | C12: 1.353809674 | D12: 0.3800890902 | E12: 1.375858751 | F12: 0.3826200328 | G12: -0.2082723271 | H12: 0.07289135965 | I12: 0.02135424038
A13: 11 | B13: 319999998.4 | C13: 1.426701034 | D13: 0.4014433305 | E13: 1.451102081 | F13: 0.4056966831 | G13: -0.2197707308 | H13: 0.07710062743 | I13: 0.02223710423
A14: 12 | B14: 319999998.1 | C14: 1.503801661 | D14: 0.4236804348 | E14: 1.531047241 | F14: 0.4295056242 | G14: -0.2318210441 | H14: 0.08144087797 | I14: 0.0232760357
A15: 13 | B15: 319999997.9 | C15: 1.585242539 | D15: 0.4469564705 | E15: 1.615794465 | F15: 0.4542673356 | G15: -0.2444815915 | H15: 0.08595733754 | I15: 0.02443731279
A16: 14 | B16: 319999997.7 | C16: 1.671199877 | D16: 0.4713937833 | E16: 1.705502 | F16: 0.4801565629 | G16: -0.2578028009 | H16: 0.0906828132 | I16: 0.02570185271
A17: 15 | B17: 319999997.4 | C17: 1.76188269 | D17: 0.497095636 | E17: 1.800372404 | F17: 0.5073185212 | G17: -0.2718310935 | H17: 0.09564282447 | I17: 0.02705957821
A18: 16 | B18: 319999997.1 | C18: 1.857525515 | D18: 0.5241552142 | E18: 1.900643557 | F18: 0.5358799417 | G18: -0.2866112989 | H18: 0.1008587475 | I18: 0.0285059872
A19: 17 | B19: 319999996.9 | C19: 1.958384262 | D19: 0.5526612014 | E19: 2.006582871 | F19: 0.5659566322 | G19: -0.3021881742 | H19: 0.106349748 | I19: 0.03004006578
A20: 18 | B20: 319999996.5 | C20: 2.06473401 | D20: 0.5827012672 | E20: 2.118483685 | F20: 0.5976586841 | G20: -0.3186073787 | H20: 0.1121339777 | I20: 0.03166302085
A21: 19 | B21: 319999996.2 | C21: 2.176867988 | D21: 0.614364288 | E21: 2.236663158 | F21: 0.6310940887 | G21: -0.3359161194 | H21: 0.1182293206 | I21: 0.03337751237
A22: 20 | B22: 319999995.9 | C22: 2.295097308 | D22: 0.6477418004 | E22: 2.36146119 | F22: 0.6663712849 | G22: -0.3541635993 | H22: 0.1246538685 | I22: 0.03518719072
A23: 21 | B23: 319999995.5 | C23: 2.419751177 | D23: 0.6829289911 | E23: 2.493240068 | F23: 0.7036009873 | G23: -0.3734013473 | H23: 0.1314262296 | I23: 0.03709642035
A24: 22 | B24: 319999995.2 | C24: 2.551177406 | D24: 0.7200254114 | E24: 2.632384605 | F24: 0.7428975337 | G24: -0.3936834797 | H24: 0.1385657391 | I24: 0.0391101172
A25: 23 | B25: 319999994.8 | C25: 2.689743145 | D25: 0.7591355287 | E25: 2.779302661 | F25: 0.7843799138 | G25: -0.4150669237 | H25: 0.1460926092 | I25: 0.04123365595
A26: 24 | B26: 319999994.4 | C26: 2.835835755 | D26: 0.8003691846 | E26: 2.934425915 | F26: 0.8281725878 | G26: -0.4376116197 | H26: 0.1540280442 | I26: 0.04347282008
A27: 25 | B27: 319999993.9 | C27: 2.989863799 | D27: 0.8438420047 | E27: 3.098210861 | F27: 0.8744061701 | G27: -0.4613807159 | H27: 0.162394336 | I27: 0.04583377848
A28: 26 | B28: 319999993.5 | C28: 3.152258135 | D28: 0.8896757832 | E28: 3.271139954 | F28: 0.9232180292 | G28: -0.4864407613 | H28: 0.1712149478 | I28: 0.04832307853
A29: 27 | B29: 319999993 | C29: 3.323473083 | D29: 0.9379988617 | E29: 3.453722908 | F29: 0.974752838 | G29: -0.5128619018 | H29: 0.1805145935 | I29: 0.05094764975
A30: 28 | B30: 319999992.5 | C30: 3.503987676 | D30: 0.9889465114 | E30: 3.646498111 | F30: 1.029163099 | G30: -0.5407180822 | H30: 0.1903193146 | I30: 0.05371481418
A31: 29 | B31: 319999991.9 | C31: 3.694306991 | D31: 1.042661326 | E31: 3.850034151 | F31: 1.08660966 | G31: -0.5700872572 | H31: 0.2006565581 | I31: 0.05663230138
A32: 30 | B32: 319999991.3 | C32: 3.894963549 | D32: 1.099293627 | E32: 4.064931454 | F32: 1.147262234 | G32: -0.6010516115 | H32: 0.2115552566 | I32: 0.05970826678
A33: 31 | B33: 319999990.7 | C33: 4.106518805 | D33: 1.159001894 | E33: 4.291824031 | F33: 1.211299934 | G33: -0.6336977912 | H33: 0.2230459107 | I33: 0.06295131241
A34: 32 | B34: 319999990.1 | C34: 4.329564716 | D34: 1.221953206 | E34: 4.531381328 | F34: 1.278911813 | G34: -0.6681171472 | H34: 0.2351606756 | I34: 0.06637050976
A35: 33 | B35: 319999989.4 | C35: 4.564725392 | D35: 1.288323716 | E35: 4.784310188 | F35: 1.350297448 | G35: -0.7044059909 | H35: 0.2479334518 | I35: 0.06997542439
A36: 34 | B36: 319999988.7 | C36: 4.812658844 | D36: 1.35829914 | E36: 5.051356929 | F36: 1.425667527 | G36: -0.7426658648 | H36: 0.2613999804 | I36: 0.07377614225
A37: 35 | B37: 319999988 | C37: 5.074058824 | D37: 1.432075283 | E37: 5.333309543 | F37: 1.505244484 | G37: -0.7830038258 | H37: 0.2755979434 | I37: 0.07778329761
A38: 36 | B38: 319999987.2 | C38: 5.349656767 | D38: 1.50985858 | E38: 5.631000013 | F38: 1.58926316 | G38: -0.8255327458 | H38: 0.2905670691 | I38: 0.08200810267
A39: 37 | B39: 319999986.4 | C39: 5.640223836 | D39: 1.591866683 | E39: 5.945306769 | F39: 1.677971493 | G39: -0.870371627 | H39: 0.3063492434 | I39: 0.08646237878
A40: 38 | B40: 319999985.5 | C40: 5.94657308 | D40: 1.678329062 | E40: 6.277157278 | F40: 1.771631258 | G40: -0.9176459353 | H40: 0.3229886273 | I40: 0.09115858948
A41: 39 | B41: 319999984.6 | C41: 6.269561707 | D41: 1.769487651 | E41: 6.627530775 | F41: 1.870518836 | G41: -0.9674879511 | H41: 0.3405317804 | I41: 0.09610987537
A42: 40 | B42: 319999983.6 | C42: 6.610093487 | D42: 1.865597527 | E42: 6.997461159 | F42: 1.974926035 | G42: -1.02003714 | H42: 0.3590277908 | I42: 0.1013300908
A43: 41 | B43: 319999982.6 | C43: 6.969121278 | D43: 1.966927617 | E43: 7.388040038 | F43: 2.085160948 | G43: -1.075440541 | H43: 0.3785284131 | I43: 0.1068338426
A44: 42 | B44: 319999981.5 | C44: 7.347649691 | D44: 2.07376146 | E44: 7.800419952 | F44: 2.201548864 | G44: -1.133853182 | H44: 0.3990882129 | I44: 0.1126365312
A45: 43 | B45: 319999980.4 | C45: 7.746737904 | D45: 2.186397991 | E45: 8.235817773 | F45: 2.324433228 | G45: -1.19543851 | H45: 0.4207647194 | I45: 0.1187543931
A46: 44 | B46: 319999979.2 | C46: 8.167502624 | D46: 2.305152384 | E46: 8.695518296 | F46: 2.454176654 | G46: -1.260368849 | H46: 0.4436185866 | I46: 0.1252045471
A47: 45 | B47: 319999977.9 | C47: 8.61112121 | D47: 2.430356931 | E47: 9.180878029 | F47: 2.591161997 | G47: -1.328825884 | H47: 0.4677137629 | I47: 0.1320050416
A48: 46 | B48: 319999976.6 | C48: 9.078834973 | D48: 2.562361973 | E48: 9.693329199 | F48: 2.735793481 | G48: -1.401001167 | H48: 0.4931176699 | I48: 0.1391749054
A49: 47 | B49: 319999975.2 | C49: 9.571952643 | D49: 2.701536878 | E49: 10.23438397 | F49: 2.888497894 | G49: -1.477096656 | H49: 0.5199013915 | I49: 0.1467342008
A50: 48 | B50: 319999973.7 | C50: 10.09185403 | D50: 2.848271079 | E50: 10.80563893 | F50: 3.049725843 | G50: -1.557325276 | H50: 0.5481398723 | I50: 0.1547040797
A51: 49 | B51: 319999972.2 | C51: 10.63999391 | D51: 3.002975159 | E51: 11.40877975 | F51: 3.21995309 | G51: -1.641911518 | H51: 0.5779121275 | I51: 0.163106843
A52: 50 | B52: 319999970.5 | C52: 11.21790603 | D52: 3.166082002 | E52: 12.04558622 | F52: 3.399681949 | G52: -1.731092067 | H52: 0.609301464 | I52: 0.1719660029
A53: 51 | B53: 319999968.8 | C53: 11.8272075 | D53: 3.338048005 | E53: 12.71793746 | F53: 3.589442775 | G53: -1.825116464 | H53: 0.6423957137 | I53: 0.1813063484
A54: 52 | B54: 319999967 | C54: 12.46960321 | D54: 3.519354353 | E54: 13.42781749 | F54: 3.789795525 | G54: -1.9242478 | H54: 0.6772874789 | I54: 0.1911540153
A55: 53 | B55: 319999965.1 | C55: 13.14689069 | D55: 3.710508368 | E55: 14.17732106 | F55: 4.00133141 | G55: -2.028763461 | H55: 0.7140743915 | I55: 0.2015365586
A56: 54 | B56: 319999963 | C56: 13.86096508 | D56: 3.912044927 | E56: 14.96865983 | F56: 4.224674641 | G56: -2.138955895 | H56: 0.7528593866 | I56: 0.2124830301
A57: 55 | B57: 319999960.9 | C57: 14.61382447 | D57: 4.124527957 | E57: 15.80416894 | F57: 4.460484273 | G57: -2.255133437 | H57: 0.7937509898 | I57: 0.2240240598
A58: 56 | B58: 319999958.6 | C58: 15.40757546 | D58: 4.348552017 | E58: 16.68631386 | F58: 4.709456146 | G58: -2.377621167 | H58: 0.8368636216 | I58: 0.2361919408
A59: 57 | B59: 319999956.3 | C59: 16.24443908 | D59: 4.584743958 | E59: 17.61769766 | F59: 4.972324938 | G59: -2.506761825 | H59: 0.882317917 | I59: 0.2490207207
A60: 58 | B60: 319999953.8 | C60: 17.126757 | D60: 4.833764678 | E60: 18.60106873 | F60: 5.249866338 | G60: -2.642916763 | H60: 0.9302410633 | I60: 0.2625462962
A61: 59 | B61: 319999951.1 | C61: 18.05699806 | D61: 5.096310975 | E61: 19.63932884 | F61: 5.542899329 | G61: -2.786466962 | H61: 0.980767156 | I61: 0.2768065137
A62: 60 | B62: 319999948.3 | C62: 19.03776522 | D62: 5.373117488 | E62: 20.73554176 | F62: 5.85228861 | G62: -2.937814096 | H62: 1.034037574 | I62: 0.2918412752
A63: 61 | B63: 319999945.4 | C63: 20.07180279 | D63: 5.664958764 | E63: 21.89294224 | F63: 6.178947144 | G63: -3.097381654 | H63: 1.090201375 | I63: 0.30769265
A64: 62 | B64: 319999942.3 | C64: 21.16200417 | D64: 5.972651414 | E64: 23.11494561 | F64: 6.523838852 | G64: -3.26561613 | H64: 1.149415713 | I64: 0.3244049925
A65: 63 | B65: 319999939 | C65: 22.31141988 | D65: 6.297056406 | E65: 24.40515782 | F65: 6.887981459 | G65: -3.442988266 | H65: 1.211846278 | I65: 0.3420250661
A66: 64 | B66: 319999935.6 | C66: 23.52326616 | D66: 6.639081472 | E66: =$O$8*EXP($K$8*A66)+$P$8*EXP($L$8*A66) -> 25.7673861 | F66: =$Q$8*EXP($K$8*A66)+$R$8*EXP($L$8*A66) -> 7.272449497 | G66: =-$L$2*B66*D66-$S$2*$L$2*B66*C66 -> -3.629994374 | H66: =-G66-$O$2*C66 -> 1.277667759 | I66: =$M$2*C66-$R$2*D66 -> 0.3606021741
A67: =A66+$J$2 -> 65 | B67: =B66+G66*$J$2 -> 319999932 | C67: =MAX(C66+H66*$J$2,0) -> 24.80093392 | D67: =MAX(D66+I66*$J$2,0) -> 6.999683646 | E67: 27.2056502 | F67: 7.678377476 | G67: -3.827157724 | H67: 1.347064332 | I67: 0.3801882977
A68: 66 | B68: 319999928.1 | C68: 26.14799825 | D68: 7.379871944 | E68: 28.7241942 | F68: 8.10696323 | G68: -4.035030004 | H68: 1.420230179 | I68: 0.4008382416
A69: 67 | B69: 319999924.1 | C69: 27.56822843 | D69: 7.780710186 | E69: 30.32749913 | F69: 8.559471453 | G69: -4.25419287 | H69: 1.497370027 | I69: 0.422609787
A70: 68 | B70: 319999919.8 | C70: 29.06559845 | D70: 8.203319973 | E70: 32.02029609 | F70: 9.037237431 | G70: -4.485259569 | H70: 1.578699723 | I70: 0.4455638536
A71: 69 | B71: 319999915.4 | C71: 30.64429818 | D71: 8.648883826 | E71: 33.80758029 | F71: 9.541670983 | G71: -4.728876657 | H71: 1.664446839 | I71: 0.4697646699
A72: 70 | B72: 319999910.6 | C72: 32.30874502 | D72: 9.118648496 | E72: 35.69462574 | F72: 10.07426062 | G72: -4.985725807 | H72: 1.754851306 | I72: 0.4952799528
A73: 71 | B73: 319999905.6 | C73: 34.06359632 | D73: 9.613928449 | E73: 37.68700084 | F73: 10.63657793 | G73: -5.256525718 | H73: 1.850166086 | I73: 0.5221810975
A74: 72 | B74: 319999900.4 | C74: 35.91376241 | D74: 10.13610955 | E74: 39.7905848 | F74: 11.23028223 | G74: -5.542034124 | H74: 1.950657883 | I74: 0.5505433769
A75: 73 | B75: 319999894.8 | C75: 37.86442029 | D75: 10.68665292 | E75: 42.01158498 | F75: 11.85712547 | G75: -5.843049914 | H75: 2.056607885 | I75: 0.5804461521
A76: 74 | B76: 319999889 | C76: 39.92102818 | D76: 11.26709908 | E76: 44.35655524 | F76: 12.51895736 | G76: -6.16041537 | H76: 2.168312553 | I76: 0.6119730949
A77: 75 | B77: 319999882.8 | C77: 42.08934073 | D77: 11.87907217 | E77: 46.83241524 | F77: 13.21773087 | G77: -6.495018523 | H77: 2.28608445 | I77: 0.6452124217
A78: 76 | B78: 319999876.3 | C78: 44.37542518 | D78: 12.52428459 | E78: 49.44647089 | F78: 13.95550798 | G78: -6.847795635 | H78: 2.410253117 | I78: 0.6802571402
A79: 77 | B79: 319999869.5 | C79: 46.7856783 | D79: 13.20454173 | E79: 52.20643588 | F79: 14.73446576 | G79: -7.219733821 | H79: 2.541165991 | I79: 0.7172053099
A80: 78 | B80: 319999862.3 | C80: 49.32684429 | D80: 13.92174704 | E80: 55.12045447 | F80: 15.55690281 | G80: -7.611873812 | H80: 2.679189383 | I80: 0.756160316
A81: 79 | B81: 319999854.7 | C81: 52.00603367 | D81: 14.67790736 | E81: 58.19712549 | F81: 16.42524602 | G81: -8.025312865 | H81: 2.824709498 | I81: 0.7972311595
A82: 80 | B82: 319999846.6 | C82: 54.83074317 | D82: 15.47513852 | E82: 61.44552778 | F82: 17.34205774 | G82: -8.461207833 | H82: 2.978133516 | I82: 0.8405327614
A83: 81 | B83: 319999838.2 | C83: 57.80887668 | D83: 16.31567128 | E83: 64.87524687 | F83: 18.31004335 | G83: -8.920778406 | H83: 3.139890737 | I83: 0.8861862846
A84: 82 | B84: 319999829.3 | C84: 60.94876742 | D84: 17.20185756 | E84: 68.49640338 | F84: 19.33205923 | G84: -9.405310517 | H84: 3.310433775 | I84: 0.934319473
A85: 83 | B85: 319999819.8 | C85: 64.2592012 | D85: 18.13617704 | E85: 72.31968281 | F85: 20.4111212 | G85: -9.916159946 | H85: 3.490239826 | I85: 0.9850670086
A86: 84 | B86: 319999809.9 | C86: 67.74944102 | D86: 19.12124405 | E86: 76.35636711 | F86: 21.55041343 | G86: -10.45475611 | H86: 3.679812008 | I86: 1.038570889
A87: 85 | B87: 319999799.5 | C87: 71.42925303 | D87: 20.15981493 | E87: 80.61836794 | F87: 22.75329779 | G87: -11.02260607 | H87: 3.879680763 | I87: 1.094980823
A88: 86 | B88: 319999788.5 | C88: 75.30893379 | D88: 21.25479576 | E88: 85.11826185 | F88: 24.02332383 | G88: -11.62129872 | H88: 4.090405343 | I88: 1.154454652
A89: 87 | B89: 319999776.8 | C89: 79.39933914 | D89: 22.40925041 | E89: 89.86932736 | F89: 25.36423919 | G89: -12.25250929 | H89: 4.312575377 | I89: 1.217158791
A90: 88 | B90: 319999764.6 | C90: 83.71191451 | D90: 23.6264092 | E90: 94.88558418 | F90: 26.78000074 | G90: -12.91800397 | H90: 4.546812518 | I90: 1.283268691
A91: 89 | B91: 319999751.7 | C91: 88.25872703 | D91: 24.90967789 | E91: 100.1818346 | F91: 28.27478617 | G91: -13.61964489 | H91: 4.793772182 | I91: 1.352969336
A92: 90 | B92: 319999738 | C92: 93.05249921 | D92: 26.26264723 | E92: 105.773707 | F92: 29.85300639 | G92: -14.35939531 | H92: 5.054145386 | I92: 1.426455753
A93: 91 | B93: 319999723.7 | C93: 98.1066446 | D93: 27.68910298 | E93: 111.6777022 | F93: 31.51931848 | G93: -15.13932514 | H93: 5.328660675 | I93: 1.503933566
A94: 92 | B94: 319999708.5 | C94: 103.4353053 | D94: 29.19303655 | E94: 117.9112421 | F94: 33.2786395 | G94: -15.96161669 | H94: 5.618086167 | I94: 1.585619564
A95: 93 | B95: 319999692.6 | C95: 109.0533914 | D95: 30.77865611 | E95: 124.4927209 | F95: 35.13616094 | G95: -16.82857084 | H95: 5.923231696 | I95: 1.671742311
A96: 94 | B96: 319999675.8 | C96: 114.9766231 | D96: 32.45039842 | E96: 131.4415596 | F96: 37.09736408 | G96: -17.7426134 | H96: 6.244951084 | I96: 1.762542788
A97: 95 | B97: 319999658 | C97: 121.2215742 | D97: 34.21294121 | E97: 138.7782632 | F97: 39.16803615 | G97: -18.70630195 | H97: 6.584144523 | I97: 1.85827506
A98: 96 | B98: 319999639.3 | C98: 127.8057187 | D98: 36.07121627 | E98: 146.5244813 | F98: 41.35428739 | G98: -19.72233298 | H98: 6.941761101 | I98: 1.959206994
A99: 97 | B99: 319999619.6 | C99: 134.7474798 | D99: 38.03042326 | E99: 154.7030718 | F99: 43.66256912 | G99: -20.79354943 | H99: 7.31880145 | I99: 2.065621006
A100: 98 | B100: 319999598.8 | C100: 142.0662813 | D100: 40.09604427 | E100: 163.3381686 | F100: 46.09969274 | G100: -21.92294868 | H100: 7.716320552 | I100: 2.177814849
A101: 99 | B101: 319999576.9 | C101: 149.7826018 | D101: 42.27385912 | E101: 172.4552526 | F101: 48.67284985 | G101: -23.11369087 | H101: 8.135430688 | I101: 2.29610245
A102: 100 | B102: 319999553.8 | C102: 157.9180325 | D102: 44.56996157 | E102: 182.0812269 | F102: 51.38963346 | G102: -24.3691078 | H102: 8.577304547 | I102: 2.420814784
A103: 101 | B103: 319999529.4 | C103: 166.4953371 | D103: 46.99077635 | E103: 192.2444964 | F103: 54.2580604 | G103: -25.69271222 | H103: 9.043178511 | I103: 2.552300803
A104: 102 | B104: 319999503.7 | C104: 175.5385156 | D104: 49.54307715 | E104: 202.9750515 | F104: 57.28659498 | G104: -27.08820767 | H104: 9.534356115 | I104: 2.690928413
A105: 103 | B105: 319999476.6 | C105: 185.0728717 | D105: 52.23400557 | E105: 214.3045565 | F105: 60.48417397 | G105: -28.55949886 | H105: 10.05221169 | I105: 2.837085501
A106: 104 | B106: 319999448 | C106: 195.1250834 | D106: 55.07109107 | E106: 226.266443 | F106: 63.86023296 | G106: -30.11070254 | H106: 10.5981942 | I106: 2.991181019
A107: 105 | B107: 319999417.9 | C107: 205.7232776 | D107: 58.06227209 | E107: 238.8960088 | F107: 67.4247342 | G107: -31.74615909 | H107: 11.17383133 | I107: 3.153646134
A108: 106 | B108: 319999386.2 | C108: 216.8971089 | D108: 61.21591822 | E108: 252.2305221 | F108: 71.18819603 | G108: -33.4704446 | H108: 11.78073371 | I108: 3.324935427
A109: 107 | B109: 319999352.7 | C109: 228.6778426 | D109: 64.54085365 | E109: 266.3093309 | F109: 75.16172387 | G109: -35.28838372 | H109: 12.42059945 | I109: 3.505528169
A110: 108 | B110: 319999317.4 | C110: 241.0984421 | D110: 68.04638182 | E110: 281.1739798 | F110: 79.35704303 | G110: -37.20506311 | H110: 13.09521891 | I110: 3.695929664
A111: 109 | B111: 319999280.2 | C111: 254.193661 | D111: 71.74231148 | E111: 296.8683322 | F111: 83.78653327 | G111: -39.22584575 | H111: 13.80647965 | I111: 3.896672655
A112: 110 | B112: 319999241 | C112: 268.0001406 | D112: 75.63898414 | E112: 313.4386999 | F112: 88.46326538 | G112: -41.35638583 | H112: 14.55637177 | I112: 4.108318823
A113: 111 | B113: 319999199.6 | C113: 282.5565124 | D113: 79.74730296 | E113: 330.9339796 | F113: 93.40103973 | G113: -43.60264468 | H113: 15.34699344 | I113: 4.331460353
A114: 112 | B114: 319999156 | C114: 297.9035059 | D114: 84.07876331 | E114: 349.4057973 | F114: 98.61442695 | G114: -45.97090739 | H114: 16.18055681 | I114: 4.566721592
A115: 113 | B115: 319999110.1 | C115: 314.0840627 | D115: 88.6454849 | E115: 368.9086607 | F115: 104.118811 | G115: -48.46780039 | H115: 17.05939412 | I115: 4.814760795
A116: 114 | B116: 319999061.6 | C116: 331.1434568 | D116: 93.4602457 | E116: 389.5001199 | F116: 109.9304345 | G116: -51.10031001 | H116: 17.98596433 | I116: 5.076271968
A117: 115 | B117: 319999010.5 | C117: 349.1294211 | D117: 98.53651767 | E117: 411.2409373 | F117: 116.0664468 | G117: -53.87580201 | H117: 18.9628599 | I117: 5.351986811
A118: 116 | B118: 319998956.6 | C118: 368.092281 | D118: 103.8885045 | E118: 434.1952668 | F118: 122.5449542 | G118: -56.80204221 | H118: 19.99281411 | I118: 5.642676757
A119: 117 | B119: 319998899.8 | C119: 388.0850951 | D119: 109.5311812 | E119: 458.4308435 | F119: 129.385074 | G119: -59.88721819 | H119: 21.07870867 | I119: 5.949155141
A120: 118 | B120: 319998839.9 | C120: 409.1638038 | D120: 115.4803364 | E120: 484.0191828 | F120: 136.6069903 | G120: -63.13996219 | H120: 22.22358181 | I120: 6.272279466
A121: 119 | B121: 319998776.8 | C121: 431.3873856 | D121: 121.7526158 | E121: 511.0357924 | F121: 144.2320139 | G121: -66.56937528 | H121: 23.43063672 | I121: 6.612953807
A122: 120 | B122: 319998710.2 | C122: 454.8180223 | D122: 128.3655696 | E122: 539.5603943 | F122: 152.2826453 | G122: -70.18505283 | H122: 24.7032506 | I122: 6.972131337
A123: 121 | B123: 319998640 | C123: 479.5212729 | D123: 135.337701 | E123: 569.6771604 | F123: 160.7826406 | G123: -73.9971113 | H123: =-G123-$O$2*C123 -> 26.04498401 | I123: 7.350816996
A124: 122 | B124: 319998566 | C124: 505.5662569 | D124: 142.688518 | E124: 601.4749609 | F124: 169.757082 | G124: -78.0162166 | H124: 27.4595909 | I124: 7.750070298
A125: 123 | B125: 319998488 | C125: 533.0258478 | D125: 150.4385883 | E125: 635.0476265 | F125: 179.232452 | G125: -82.25361387 | H125: 28.95102908 | I125: 8.171008299
A126: 124 | B126: 319998405.8 | C126: 561.9768769 | D126: 158.6095966 | E126: 670.4942253 | F126: 189.2367108 | G126: -86.72115898 | H126: 30.52347129 | I126: 8.614808718
A127: 125 | B127: 319998319.1 | C127: 592.5003482 | D127: 167.2244053 | E127: 707.919355 | F127: 199.7993796 | G127: -91.43135169 | H127: 32.18131687 | I127: 9.082713232
A128: 126 | B128: 319998227.6 | C128: 624.6816651 | D128: 176.3071185 | E128: 747.4334518 | F128: 210.9516273 | G128: -96.39737058 | H128: 33.92920407 | I128: 9.576030949
A129: 127 | B129: 319998131.2 | C129: 658.6108692 | D129: 185.8831495 | E129: 789.1531159 | F129: 222.7263626 | G129: -101.6331099 | H129: 35.77202301 | I129: 10.09614207
A130: 128 | B130: 319998029.6 | C130: 694.3828922 | D130: 195.9792916 | E130: =$O$8*EXP($K$8*A130)+$P$8*EXP($L$8*A130) -> 833.2014561 | F130: =$Q$8*EXP($K$8*A130)+$R$8*EXP($L$8*A130) -> 235.158331 | G130: =-$L$2*B130*D130-$S$2*$L$2*B130*C130 -> -107.1532186 | H130: =-G130-$O$2*C130 -> 37.71492937 | I130: =$M$2*C130-$R$2*D130 -> 10.64450175
A131: =A130+$J$2 -> 129 | B131: =B130+G130*$J$2 -> 319997922.4 | C131: =MAX(C130+H130*$J$2,0) -> 732.0978215 | D131: =MAX(D130+I130*$J$2,0) -> 206.6237933 | E131: 879.7084526 | F131: 248.2842174 | G131: -112.973141 | H131: 39.76335881 | I131: 11.22264416
A132: 130 | B132: 319997809.5 | C132: 771.8611803 | D132: 217.8464375 | E132: 928.8113407 | F132: 262.1427544 | G132: -119.1091602 | H132: 41.92304214 | I132: 11.8321868
A133: 131 | B133: 319997690.4 | C133: 813.7842225 | D133: 229.6786243 | E133: 980.655016 | F133: 276.7748366 | G133: -125.5784436 | H133: 44.20002137 | I133: 12.47483497
A134: 132 | B134: 319997564.8 | C134: 857.9842438 | D134: 242.1534592 | E134: 1035.392462 | F134: 292.223641 | G134: -132.399091 | H134: 46.6006666 | I134: 13.15238662
A135: 133 | B135: 319997432.4 | C135: 904.5849104 | D135: 255.3058458 | E135: 1093.1852 | F135: 308.5347549 | G135: -139.5901849 | H135: 49.13169384 | I135: 13.86673729
A136: 134 | B136: 319997292.8 | C136: 953.7166043 | D136: 269.1725831 | E136: 1154.203768 | F136: 325.75631 | G136: -147.1718442 | H136: 51.80018376 | I136: 14.61988549
A137: 135 | B137: 319997145.6 | C137: 1005.516788 | D137: 283.7924686 | E137: 1218.628224 | F137: 343.9391245 | G137: -155.1652803 | H137: 54.61360151 | I137: 15.41393822
A138: 136 | B138: 319996990.4 | C138: 1060.13039 | D138: 299.2064068 | E138: 1286.648675 | F138: 363.1368534 | G138: -163.5928565 | H138: 57.57981758 | I138: 16.2511169
A139: 137 | B139: 319996826.9 | C139: 1117.710207 | D139: 315.4575237 | E139: 1358.465839 | F139: 383.4061463 | G139: -172.4781505 | H139: 60.70712982 | I139: 17.13376359
A140: 138 | B140: 319996654.4 | C140: 1178.417337 | D140: 332.5912873 | E140: 1434.291638 | F140: 404.806815 | G140: -181.8460203 | H140: 64.00428658 | I140: 18.0643475
A141: 139 | B141: 319996472.5 | C141: 1242.421624 | D141: 350.6556348 | E141: 1514.349822 | F141: 427.4020096 | G141: -191.7226736 | H141: 67.48051125 | I141: 19.04547191
A142: 140 | B142: 319996280.8 | C142: 1309.902135 | D142: 369.7011067 | E142: 1598.876633 | F142: 451.2584055 | G142: -202.1357414 | H142: 71.14552796 | I142: 20.07988146
A143: 141 | B143: 319996078.7 | C143: 1381.047663 | D143: 389.7809882 | E143: 1688.121496 | F143: 476.4463993 | G143: -213.1143551 | H143: 75.0095888 | I143: 21.17046982
A144: 142 | B144: 319995865.6 | C144: 1456.057252 | D144: 410.951458 | E144: 1782.347761 | F144: 503.040317 | G144: -224.6892276 | H144: 79.08350246 | I144: 22.32028775
A145: 143 | B145: 319995640.9 | C145: 1535.140754 | D145: 433.2717458 | E145: 1881.833474 | F145: 531.1186336 | G145: -236.8927398 | H145: 83.37866444 | I145: 23.53255167
A146: 144 | B146: 319995404 | C146: 1618.519418 | D146: 456.8042974 | E146: 1986.872204 | F146: 560.764204 | G146: -249.7590307 | H146: 87.90708888 | I146: 24.81065261
A147: 145 | B147: 319995154.2 | C147: 1706.426507 | D147: 481.61495 | E147: 2097.773904 | F147: 592.064508 | G147: -263.3240929 | H147: 92.68144216 | I147: 26.15816572
A148: 146 | B148: 319994890.9 | C148: 1799.107949 | D148: 507.7731158 | E148: 2214.865831 | F148: 625.1119082 | G148: -277.6258732 | H148: 97.71507823 | I148: 27.57886022
A149: 147 | B149: 319994613.3 | C149: 1896.823028 | D149: 535.351976 | E149: 2338.493504 | F149: 660.0039227 | G149: -292.7043788 | H149: 103.022076 | I149: 29.07670998
A150: 148 | B150: 319994320.6 | C150: 1999.845104 | D150: 564.428686 | E150: 2469.021732 | F150: 696.8435128 | G150: -308.6017889 | H150: 108.6172785 | I150: 30.65590458
A151: 149 | B151: 319994012 | C151: 2108.462382 | D151: 595.0845905 | E151: 2606.835683 | F151: 735.7393868 | G151: -325.3625729 | H151: 114.5163347 | I151: 32.32086106
A152: 150 | B152: 319993686.6 | C152: 2222.978717 | D152: 627.4054516 | E152: 2752.342027 | F152: 776.8063206 | G152: -343.0336144 | H152: 120.7357427 | I152: 34.07623621
A153: 151 | B153: 319993343.6 | C153: 2343.71446 | D153: 661.4816878 | E153: 2905.970132 | F153: 820.1654969 | G153: -361.6643423 | H153: 127.2928963 | I153: 35.92693962
A154: 152 | B154: 319992981.9 | C154: 2471.007356 | D154: 697.4086274 | E154: 3068.173333 | F154: 865.9448622 | G154: -381.3068687 | H154: 134.2061331 | I154: 37.87814736
A155: 153 | B155: 319992600.6 | C155: 2605.213489 | D155: 735.2867748 | E155: 3239.430266 | F155: 914.2795049 | G155: -402.0161351 | H155: 141.4947862 | I155: 39.93531647
A156: 154 | B156: 319992198.6 | C156: 2746.708275 | D156: 775.2220913 | E156: 3420.246287 | F156: 965.3120534 | G156: -423.8500653 | H156: 149.1792378 | I156: 42.10420015
A157: 155 | B157: 319991774.7 | C157: 2895.887513 | D157: 817.3262914 | E157: 3611.154958 | F157: 1019.193097 | G157: -446.8697275 | H157: 157.2809762 | I157: 44.39086389
A158: 156 | B158: 319991327.9 | C158: 3053.168489 | D158: 861.7171553 | E158: 3812.719621 | F158: 1076.081632 | G158: -471.1395046 | H158: 165.8226556 | I158: 46.80170234
A159: 157 | B159: 319990856.7 | C159: 3218.991145 | D159: 908.5188576 | E159: 4025.535065 | F159: 1136.145527 | G159: -496.7272745 | H159: 174.82816 | I159: 49.3434572
A160: 158 | B160: 319990360 | C160: 3393.819305 | D160: 957.8623148 | E160: 4250.229278 | F160: 1199.562022 | G160: -523.7045992 | H160: 184.3226687 | I160: 52.02323604
A161: 159 | B161: 319989836.3 | C161: 3578.141974 | D161: 1009.885551 | E161: 4487.465298 | F161: 1266.51825 | G161: -552.146925 | H161: 194.3327276 | I161: 54.84853209
A162: 160 | B162: 319989284.1 | C162: 3772.474701 | D162: 1064.734083 | E162: 4737.943177 | F162: 1337.211789 | G162: -582.1337928 | H162: 204.8863227 | I162: 57.82724523
A163: 161 | B163: 319988702 | C163: 3977.361024 | D163: 1122.561328 | E163: 5002.402036 | F163: 1411.851246 | G163: -613.7490606 | H163: 216.0129582 | I163: 60.96770393
A164: 162 | B164: 319988088.3 | C164: 4193.373982 | D164: 1183.529032 | E164: 5281.622256 | F164: 1490.65687 | G164: -647.0811372 | H164: 227.743739 | I164: 64.27868857
A165: 163 | B165: 319987441.2 | C165: 4421.117721 | D165: 1247.807721 | E165: 5576.427775 | F165: 1573.861206 | G165: -682.223229 | H165: 240.1114569 | I165: 67.7694559
A166: 164 | B166: 319986759 | C166: 4661.229178 | D166: 1315.577177 | E166: 5887.688521 | F166: 1661.709777 | G166: -719.2736004 | H166: 253.1506826 | I166: 71.44976481
A167: 165 | B167: 319986039.7 | C167: 4914.379861 | D167: 1387.026941 | E167: 6216.322979 | F167: 1754.461812 | G167: -758.3358477 | H167: 266.8978617 | I167: 75.32990363
A168: 166 | B168: 319985281.3 | C168: 5181.277722 | D168: 1462.356845 | E168: 6563.300903 | F168: 1852.391009 | G168: -799.5191884 | H168: 281.3914162 | I168: 79.42071871
A169: 167 | B169: 319984481.8 | C169: 5462.669138 | D169: 1541.777564 | E169: 6929.646172 | F169: 1955.786342 | G169: -842.9387655 | H169: 296.6718517 | I169: 83.73364471
A170: 168 | B170: 319983638.9 | C170: 5759.34099 | D170: 1625.511208 | E170: 7316.439819 | F170: 2064.952916 | G170: -888.7159691 | H170: 312.78187 | I170: 88.28073647
A171: 169 | B171: 319982750.2 | C171: 6072.12286 | D171: 1713.791945 | E171: 7724.823216 | F171: 2180.212866 | G171: -936.9787742 | H171: 329.7664882 | I171: 93.07470253
A172: 170 | B172: 319981813.2 | C172: 6401.889348 | D172: 1806.866647 | E172: 8156.001443 | F172: 2301.906307 | G172: -987.8620984 | H172: 347.6731635 | I172: 98.12894059
A173: 171 | B173: 319980825.3 | C173: 6749.562512 | D173: 1904.995588 | E173: 8611.246843 | F173: 2430.392339 | G173: -1041.508177 | H173: 366.551926 | I173: 103.4575748
A174: 172 | B174: 319979783.8 | C174: 7116.114438 | D174: 2008.453163 | E174: 9091.90278 | F174: 2566.050104 | G174: -1098.066961 | H174: 386.455517 | I174: 109.0754949
A175: 173 | B175: 319978685.8 | C175: 7502.569955 | D175: 2117.528658 | E175: 9599.3876 | F175: 2709.279911 | G175: -1157.696532 | H175: 407.4395363 | I175: 114.9983981
A176: 174 | B176: 319977528.1 | C176: 7910.009491 | D176: 2232.527056 | E176: 10135.19882 | F176: 2860.504408 | G176: -1220.563545 | H176: 429.5625963 | I176: 121.2428323
A177: 175 | B177: 319976307.5 | C177: 8339.572087 | D177: 2353.769888 | E177: 10700.91753 | F177: 3020.169837 | G177: -1286.843694 | H177: 452.8864853 | I177: 127.8262423
A178: 176 | B178: 319975020.6 | C178: 8792.458573 | D178: 2481.59613 | E178: 11298.21309 | F178: 3188.747349 | G178: -1356.722196 | H178: 477.4763385 | I178: 134.7670181
A179: 177 | B179: 319973663.9 | C179: 9269.934911 | D179: 2616.363149 | E179: 11928.84804 | F179: 3366.73439 | G179: -1430.39431 | H179: 503.4008193 | I179: 142.0845465
A180: 178 | B180: 319972233.5 | C180: 9773.33573 | D180: 2758.447695 | E180: 12594.68328 | F180: 3554.656174 | G180: -1508.065883 | H180: 530.7323096 | I180: 149.7992645
A181: 179 | B181: 319970725.5 | C181: 10304.06804 | D181: 2908.24696 | E181: 13297.6836 | F181: 3753.067232 | G181: -1589.953915 | H181: 559.5471107 | I181: 157.9327161
A182: 180 | B182: 319969135.5 | C182: 10863.61515 | D182: 3066.179676 | E182: 14039.92346 | F182: 3962.553045 | G182: -1676.28717 | H182: 589.9256548 | I182: 166.5076123
A183: 181 | B183: 319967459.2 | C183: 11453.54081 | D183: 3232.687288 | E183: 14823.59308 | F183: 4183.731776 | G183: -1767.306808 | H183: 621.9527276 | I183: 175.5478941
A184: 182 | B184: 319965691.9 | C184: 12075.49353 | D184: 3408.235182 | E184: 15651.00497 | F184: 4417.25609 | G184: -1863.267057 | H184: 655.7177037 | I184: 185.0787986
A185: 183 | B185: 319963828.7 | C185: 12731.21124 | D185: 3593.313981 | E185: 16524.6007 | F185: 4663.815085 | G185: -1964.435917 | H185: 691.3147933 | I185: 195.1269294
A186: 184 | B186: 319961864.2 | C186: 13422.52603 | D186: 3788.44091 | E186: 17446.95812 | F186: 4924.13632 | G186: -2071.095906 | H186: 728.8433033 | I186: 205.7203299
A187: 185 | B187: 319959793.1 | C187: 14151.36933 | D187: 3994.16124 | E187: 18420.79897 | F187: 5198.987964 | G187: -2183.544845 | H187: 768.4079116 | I187: 216.8885613
A188: 186 | B188: 319957609.6 | C188: 14919.77725 | D188: 4211.049802 | E188: 19448.99693 | F188: 5489.181066 | G188: -2302.096681 | H188: 810.1189563 | I188: 228.6627841
A189: 187 | B189: 319955307.5 | C189: 15729.8962 | D189: 4439.712586 | E189: 20534.58604 | F189: 5795.571943 | G189: -2427.082361 | H189: 854.0927404 | I189: 241.0758445
A190: 188 | B190: 319952880.4 | C190: 16583.98894 | D190: 4680.78843 | E190: 21680.76973 | F190: 6119.064709 | G190: -2558.850747 | H190: 900.4518526 | I190: 254.1623652
A191: 189 | B191: 319950321.5 | C191: 17484.44079 | D191: 4934.950795 | E191: 22890.93022 | F191: 6460.613945 | G191: -2697.769585 | H191: 949.3255051 | I191: 267.9588409
A192: 190 | B192: 319947623.8 | C192: 18433.7663 | D192: 5202.909636 | E192: 24168.63852 | F192: 6821.227513 | G192: -2844.22652 | H192: 1000.84989 | I192: 282.5037391
A193: 191 | B193: 319944779.5 | C193: 19434.61619 | D193: 5485.413375 | E193: 25517.66495 | F193: 7201.969531 | G193: -2998.630172 | H193: 1055.168553 | I193: 297.8376064
A194: 192 | B194: 319941780.9 | C194: 20489.78474 | D194: 5783.250982 | E194: =$O$8*EXP($K$8*A194)+$P$8*EXP($L$8*A194) -> 26941.9903 | F194: =$Q$8*EXP($K$8*A194)+$R$8*EXP($L$8*A194) -> 7603.963514 | G194: =-$L$2*B194*D194-$S$2*$L$2*B194*C194 -> -3161.411263 | H194: =-G194-$O$2*C194 -> 1112.432789 | I194: =$M$2*C194-$R$2*D194 -> 314.0031797
A195: =A194+$J$2 -> 193 | B195: =B194+G194*$J$2 -> 319938619.5 | C195: =MAX(C194+H194*$J$2,0) -> 21602.21753 | D195: =MAX(D194+I194*$J$2,0) -> 6097.254161 | E195: 28445.81754 | F195: 8028.395686 | G195: -3333.02381 | H195: 1172.802057 | I195: 331.0455047
A196: 194 | B196: 319935286.5 | C196: 22775.01959 | D196: 6428.299666 | E196: 30033.58425 | F196: 8476.518487 | G196: -3513.946379 | H196: 1236.44442 | I196: 349.012059
A197: 195 | B197: 319931772.5 | C197: 24011.46401 | D197: 6777.311725 | E197: 31709.9757 | F197: 8949.65426 | G197: -3704.683401 | H197: 1303.537001 | I197: 367.9528833
A198: 196 | B198: 319928067.9 | C198: 25315.00101 | D198: 7145.264608 | E198: 33479.93868 | F198: 9449.199162 | G198: -3905.766572 | H198: 1374.266472 | I198: 387.9207184
A199: 197 | B199: 319924162.1 | C199: 26689.26748 | D199: 7533.185327 | E199: 35348.69608 | F199: 9976.627275 | G199: -4117.756311 | H199: 1448.829563 | I199: 408.97115
A200: 198 | B200: 319920044.3 | C200: 28138.09704 | D200: 7942.156477 | E200: 37321.76234 | F200: 10533.49496 | G200: -4341.243303 | H200: 1527.433598 | I200: 431.1627613
... 400 more rows

Sheet SEIR+Fizzle
A1: E\/, I>> | B1: 0 | C1: 1 | D1: 2 | E1: 3 | F1: 4 | G1: 5 | H1: 6 | I1: 7 | J1: 8 | K1: 9 | L1: 10 | M1: 11 | O1: K | P1: 0.32
A2: 0 | B2: 1 | C2: =($P$5*C$1*B2+$P$4*$A2*C1+$P$3*$A2*D1+$P$1*(C$1+$P$2*$A2)*C3)/($P$5*C$1+($P$3+$P$4)*$A2+$P$1*(C$1+$P$2*$A2)) -> 0.6458904647 | D2: =($P$5*D$1*C2+$P$4*$A2*D1+$P$3*$A2*E1+$P$1*(D$1+$P$2*$A2)*D3)/($P$5*D$1+($P$3+$P$4)*$A2+$P$1*(D$1+$P$2*$A2)) -> 0.4171744564 | E2: =($P$5*E$1*D2+$P$4*$A2*E1+$P$3*$A2*F1+$P$1*(E$1+$P$2*$A2)*E3)/($P$5*E$1+($P$3+$P$4)*$A2+$P$1*(E$1+$P$2*$A2)) -> 0.2694489436 | F2: =($P$5*F$1*E2+$P$4*$A2*F1+$P$3*$A2*G1+$P$1*(F$1+$P$2*$A2)*F3)/($P$5*F$1+($P$3+$P$4)*$A2+$P$1*(F$1+$P$2*$A2)) -> 0.1740344263 | G2: =($P$5*G$1*F2+$P$4*$A2*G1+$P$3*$A2*H1+$P$1*(G$1+$P$2*$A2)*G3)/($P$5*G$1+($P$3+$P$4)*$A2+$P$1*(G$1+$P$2*$A2)) -> 0.1124070831 | H2: =($P$5*H$1*G2+$P$4*$A2*H1+$P$3*$A2*I1+$P$1*(H$1+$P$2*$A2)*H3)/($P$5*H$1+($P$3+$P$4)*$A2+$P$1*(H$1+$P$2*$A2)) -> 0.07260254246 | I2: =($P$5*I$1*H2+$P$4*$A2*I1+$P$3*$A2*J1+$P$1*(I$1+$P$2*$A2)*I3)/($P$5*I$1+($P$3+$P$4)*$A2+$P$1*(I$1+$P$2*$A2)) -> 0.04689307673 | J2: =($P$5*J$1*I2+$P$4*$A2*J1+$P$3*$A2*K1+$P$1*(J$1+$P$2*$A2)*J3)/($P$5*J$1+($P$3+$P$4)*$A2+$P$1*(J$1+$P$2*$A2)) -> 0.03028702366 | K2: =($P$5*K$1*J2+$P$4*$A2*K1+$P$3*$A2*L1+$P$1*(K$1+$P$2*$A2)*K3)/($P$5*K$1+($P$3+$P$4)*$A2+$P$1*(K$1+$P$2*$A2)) -> 0.01955561945 | L2: 0.01250913302 | M2: 0 | O2: q | P2: 0.2
A3: 1 | B3: =($P$5*B$1*A3+$P$4*$A3*B2+$P$3*$A3*C2+$P$1*(B$1+$P$2*$A3)*B4)/($P$5*B$1+($P$3+$P$4)*$A3+$P$1*(B$1+$P$2*$A3)) -> 0.4860155776 | C3: 0.3139127754 | D3: 0.2027531987 | E3: 0.1309562754 | F3: 0.08458331624 | G3: 0.05463144886 | H3: 0.03528578561 | I3: 0.02279045262 | J3: 0.01471884891 | K3: =($P$5*K$1*J3+$P$4*$A3*K2+$P$3*$A3*L2+$P$1*(K$1+$P$2*$A3)*K4)/($P$5*K$1+($P$3+$P$4)*$A3+$P$1*(K$1+$P$2*$A3)) -> 0.009494927998 | L3: =($P$5*L$1*K3+$P$4*$A3*L2+$P$3*$A3*M2+$P$1*(L$1+$P$2*$A3)*L4)/($P$5*L$1+($P$3+$P$4)*$A3+$P$1*(L$1+$P$2*$A3)) -> 0.005903051995 | M3: 0 | O3: beta | P3: 0.1
A4: 2 | B4: =($P$5*B$1*A4+$P$4*$A4*B3+$P$3*$A4*C3+$P$1*(B$1+$P$2*$A4)*B5)/($P$5*B$1+($P$3+$P$4)*$A4+$P$1*(B$1+$P$2*$A4)) -> 0.2362110665 | C4: =($P$5*C$1*B4+$P$4*$A4*C3+$P$3*$A4*D3+$P$1*(C$1+$P$2*$A4)*C5)/($P$5*C$1+($P$3+$P$4)*$A4+$P$1*(C$1+$P$2*$A4)) -> 0.1525663984 | D4: =($P$5*D$1*C4+$P$4*$A4*D3+$P$3*$A4*E3+$P$1*(D$1+$P$2*$A4)*D5)/($P$5*D$1+($P$3+$P$4)*$A4+$P$1*(D$1+$P$2*$A4)) -> 0.09854109564 | E4: =($P$5*E$1*D4+$P$4*$A4*E3+$P$3*$A4*F3+$P$1*(E$1+$P$2*$A4)*E5)/($P$5*E$1+($P$3+$P$4)*$A4+$P$1*(E$1+$P$2*$A4)) -> 0.06364666012 | F4: =($P$5*F$1*E4+$P$4*$A4*F3+$P$3*$A4*G3+$P$1*(F$1+$P$2*$A4)*F5)/($P$5*F$1+($P$3+$P$4)*$A4+$P$1*(F$1+$P$2*$A4)) -> 0.04110866767 | G4: =($P$5*G$1*F4+$P$4*$A4*G3+$P$3*$A4*H3+$P$1*(G$1+$P$2*$A4)*G5)/($P$5*G$1+($P$3+$P$4)*$A4+$P$1*(G$1+$P$2*$A4)) -> 0.02655157481 | H4: =($P$5*H$1*G4+$P$4*$A4*H3+$P$3*$A4*I3+$P$1*(H$1+$P$2*$A4)*H5)/($P$5*H$1+($P$3+$P$4)*$A4+$P$1*(H$1+$P$2*$A4)) -> 0.0171492317 | I4: =($P$5*I$1*H4+$P$4*$A4*I3+$P$3*$A4*J3+$P$1*(I$1+$P$2*$A4)*I5)/($P$5*I$1+($P$3+$P$4)*$A4+$P$1*(I$1+$P$2*$A4)) -> 0.01107610522 | J4: =($P$5*J$1*I4+$P$4*$A4*J3+$P$3*$A4*K3+$P$1*(J$1+$P$2*$A4)*J5)/($P$5*J$1+($P$3+$P$4)*$A4+$P$1*(J$1+$P$2*$A4)) -> 0.00715195639 | K4: 0.004601583244 | L4: 0.002782548684 | M4: 0 | O4: mu | P4: 0
A5: 3 | B5: =($P$5*B$1*A5+$P$4*$A5*B4+$P$3*$A5*C4+$P$1*(B$1+$P$2*$A5)*B6)/($P$5*B$1+($P$3+$P$4)*$A5+$P$1*(B$1+$P$2*$A5)) -> 0.1148021463 | C5: 0.07414952229 | D5: 0.04789237481 | E5: 0.03093312778 | F5: 0.01997930178 | G5: 0.01290430545 | H5: 0.008334553094 | I5: 0.005382644779 | J5: 0.003473923829 | K5: 0.002225818203 | L5: 0.001310014446 | M5: 0 | O5: gamma+ | P5: 0.3
A6: 4 | B6: 0.05579550251 | C6: 0.03603768788 | D6: 0.02327630019 | E6: 0.01503383586 | F6: 0.009710094507 | G6: 0.006271508364 | H6: 0.004050452774 | I6: 0.002615456891 | J6: 0.001686413617 | K6: 0.001074482157 | L6: 0.0006159086271 | M6: 0 | O6: R0 | P6: =P1*(P3+P2*P5)/(P5*(P3+P4)) -> 1.706666667
A7: 5 | B7: 0.02711734661 | C7: 0.01751473795 | D7: 0.01131250147 | E7: 0.00730652972 | F7: 0.004719095809 | G7: 0.003047856907 | H7: 0.001968294289 | I7: 0.001270553794 | J7: 0.000817995402 | K7: 0.000517585519 | L7: 0.0002891270474 | M7: 0
A8: 6 | B8: 0.01317931337 | C8: 0.008512294648 | D8: 0.005497908674 | E8: 0.003550938338 | F8: 0.002293391452 | G8: 0.001481108841 | H8: 0.0009563326766 | I8: 0.0006169659222 | J8: 0.0003963344582 | K8: 0.0002487516947 | L8: 0.0001354873056 | M8: 0
A9: 7 | B9: 0.006405212454 | C9: 0.004136968357 | D9: 0.002671927998 | E9: 0.001725664689 | F9: 0.001114463846 | G9: 0.0007196495738 | H9: 0.0004645228824 | I9: 0.0002994019466 | J9: 0.0001917603582 | K9: 0.0001192484247 | L9: 6.336097089e-05 | M9: 0
A10: 8 | B10: 0.003112896524 | C10: 0.002010495114 | D10: 0.001298461588 | E10: 0.000838558359 | F10: 0.000541493644 | G10: 0.0003495814197 | H10: 0.0002255287218 | I10: 0.000145158374 | J10: 9.261350062e-05 | K10: 5.700400248e-05 | L10: 2.955897478e-05 | M10: 0
A11: 9 | B11: 0.001512784286 | C11: 0.0009770014483 | D11: 0.0006309419737 | E11: 0.0004074188919 | F11: 0.0002630324822 | G11: 0.0001697416912 | H11: 0.0001094129996 | I11: 7.028216836e-05 | J11: 4.462664018e-05 | K11: 2.715989289e-05 | L11: 1.3748656e-05 | M11: 0
A12: 10 | B12: 0.0007351111159 | C12: 0.0004747146434 | D12: 0.0003065255004 | E12: 0.0001978889112 | F12: 0.0001277104265 | G12: 8.235910211e-05 | H12: 5.301777454e-05 | I12: 3.396365107e-05 | J12: 2.14401307e-05 | K12: 1.288923567e-05 | L12: 6.37049915e-06 | M12: 0
A13: 11 | B13: 0.0003571574715 | C13: 0.0002306039434 | D13: 0.0001488638776 | E13: 9.606609775e-05 | F13: 6.195758992e-05 | G13: 3.991227883e-05 | H13: 2.564324976e-05 | I13: 1.636759261e-05 | J13: 1.026006474e-05 | K13: 6.086157002e-06 | L13: 2.936720397e-06 | M13: 0
A14: 12 | B14: 0.0001734743904 | C14: 0.0001119713544 | D14: 7.224812128e-05 | E14: 4.659087931e-05 | F14: 3.001612177e-05 | G14: 1.930289866e-05 | H14: 1.236707074e-05 | I14: 7.85581546e-06 | J14: 4.883179045e-06 | K14: 2.854480871e-06 | L14: 1.34401615e-06 | M14: 0
A15: 13 | B15: 8.420946381e-05 | C15: 5.432251375e-05 | D15: 3.50211954e-05 | E15: 2.255640565e-05 | F15: 1.450582024e-05 | G15: 9.303635144e-06 | H15: 5.936595844e-06 | I15: 3.74719338e-06 | J15: 2.305684772e-06 | K15: 1.325924812e-06 | L15: 6.084882316e-07 | M15: 0
A16: 14 | B16: 4.083150978e-05 | C16: 2.631090367e-05 | D16: 1.693601871e-05 | E16: 1.088456316e-05 | F16: 6.978876865e-06 | G16: 4.457523336e-06 | H16: 2.827709129e-06 | I16: 1.769808439e-06 | J16: 1.075420742e-06 | K16: 6.069402677e-07 | L16: 2.708704138e-07 | M16: 0
A17: 15 | B17: 1.975181607e-05 | C17: 1.27002209e-05 | D17: 8.151205756e-06 | E17: 5.218577215e-06 | F17: 3.329297294e-06 | G17: 2.112678863e-06 | H17: 1.328794526e-06 | I17: 8.221622917e-07 | J17: 4.917297203e-07 | K17: 2.713829505e-07 | L17: 1.173081622e-07 | M17: 0
A18: 16 | B18: 9.503241687e-06 | C18: 6.083677735e-06 | D18: 3.88280251e-06 | E18: 2.468673484e-06 | F18: 1.561674541e-06 | G18: 9.808534545e-07 | H18: 6.091720686e-07 | I18: 3.709699897e-07 | J18: 2.173393815e-07 | K18: 1.166518377e-07 | L18: 4.849515225e-08 | M18: 0
A19: 17 | B19: 4.507961662e-06 | C19: 2.859039328e-06 | D19: 1.804818938e-06 | E19: 1.133132044e-06 | F19: 7.066373672e-07 | G19: 4.366700157e-07 | H19: 2.661656651e-07 | I19: 1.585190293e-07 | J19: 9.033514879e-08 | K19: 4.67475119e-08 | L19: 1.845779131e-08 | M19: 0
A20: 18 | B20: 2.045905298e-06 | C20: 1.271628738e-06 | D20: 7.856725484e-07 | E20: 4.822333864e-07 | F20: 2.936470968e-07 | G20: 1.769213115e-07 | H20: 1.049039687e-07 | I20: 6.054651314e-08 | J20: 3.32135248e-08 | K20: 1.633984855e-08 | L20: 5.983230552e-09 | M20: 0
A21: 19 | B21: 7.753833769e-07 | C21: 4.618289226e-07 | D21: 2.739533489e-07 | E21: 1.616735326e-07 | F21: 9.473887257e-08 | G21: 5.492693845e-08 | H21: 3.129123232e-08 | I21: 1.727699638e-08 | J21: 8.978517032e-09 | K21: 4.095001614e-09 | L21: 1.318699532e-09 | M21: 0
A22: 20 | B22: 0 | C22: 0 | D22: 0 | E22: 0 | F22: 0 | G22: 0 | H22: 0 | I22: 0 | J22: 0 | K22: 0

Sheet SEIR+CaseDist
A1: Cases | B1: Case Probability | C1: Cumulative | F1: alpha | G1: 0.001
A2: 0 | B2: 0.295043273 | C2: 0.295043273 | F2: beta | G2: 0.1
A3: 1 | B3: 0.07929369335 | C3: 0.3743369664 | F3: gamma | G3: 0.3
A4: 2 | B4: 0.03748530039 | C4: 0.4118222667 | F4: mu | G4: 0
A5: 3 | B5: 0.02176525666 | C5: 0.4335875234 | F5: q | G5: 0.2
A6: 4 | B6: 0.01408987882 | C6: 0.4476774022 | F6: s0 | G6: 320
A7: 5 | B7: 0.009762423334 | C7: 0.4574398256 | F7: e0 | G7: 1
A8: 6 | B8: 0.00708799826 | C8: 0.4645278238 | F8: i0 | G8: ='SEIR+Ebola'!D2 -> 0
A9: 7 | B9: 0.005326173023 | C9: 0.4698539968 | F9: alpha*s0 | G9: =G1*G6 -> 0.32
A10: 8 | B10: 0.004109576763 | C10: 0.4739635736 | F10: R0 | G10: =G9*(G2+G5*G3)/(G3*(G2+G4)) -> 1.706666667
A11: 9 | B11: 0.003238491607 | C11: 0.4772020652 | F11: avgStoch | G11: 112.0916542
A12: 10 | B12: 0.002596587546 | C12: 0.4797986528 | F12: avgDet | G12: =G6*casefrac(G1*G8/G3+G10*G7/G6,G10) -> 223.2118714
A13: 11 | B13: 0.002112346554 | C13: 0.4819109993 | F13: avgLIN | G13: =IF(G10<1,G7*G15+G8*G16,"N/A") -> N/A
A14: 12 | B14: 0.001739848716 | C14: 0.483650848
A15: 13 | B15: 0.001448538411 | C15: 0.4850993864 | F15: Ce | G15: =(G2*G9/G3+G5*G9)/(G4+G2-G9*G2/G3-G5*G9) -> -2.41509434
A16: 14 | B16: 0.001217467133 | C16: 0.4863168536 | F16: Ci | G16: =G9*(G15+1)/G3 -> -1.509433962
A17: 15 | B17: 0.001031904005 | C17: 0.4873487576
A18: 16 | B18: 0.0008812620408 | C18: 0.4882300196
A19: 17 | B19: 0.0007577869125 | C19: 0.4889878065
A20: 18 | B20: 0.0006557038705 | C20: 0.4896435104
A21: 19 | B21: 0.0005706487034 | C21: 0.4902141591
A22: 20 | B22: 0.0004992797196 | C22: 0.4907134388
A23: 21 | B23: 0.0004390079388 | C23: 0.4911524468
A24: 22 | B24: 0.0003878061702 | C24: 0.4915402529
A25: 23 | B25: 0.0003440717697 | C25: 0.4918843247
A26: 24 | B26: 0.0003065265699 | C26: 0.4921908513
A27: 25 | B27: 0.0002741429653 | C27: 0.4924649942
A28: 26 | B28: 0.0002460886682 | C28: 0.4927110829
A29: 27 | B29: 0.0002216849704 | C29: 0.4929327679
A30: 28 | B30: 0.0002003748937 | C30: 0.4931331428
A31: 29 | B31: 0.0001816986624 | C31: 0.4933148414
A32: 30 | B32: 0.0001652746536 | C32: 0.4934801161
A33: 31 | B33: 0.0001507844839 | C33: 0.4936309006
A34: 32 | B34: 0.0001379612495 | C34: 0.4937688618
A35: 33 | B35: 0.0001265801883 | C35: 0.493895442
A36: 34 | B36: 0.000116451218 | C36: 0.4940118932
A37: 35 | B37: 0.0001074129364 | C37: 0.4941193062
A38: 36 | B38: 9.932777152e-05 | C38: 0.4942186339
A39: 37 | B39: 9.207803892e-05 | C39: 0.494310712
A40: 38 | B40: 8.556272081e-05 | C40: 0.4943962747
A41: 39 | B41: 7.969482253e-05 | C41: 0.4944759695
A42: 40 | B42: 7.439919279e-05 | C42: 0.4945503687
A43: 41 | B43: 6.961071877e-05 | C43: 0.4946199794
A44: 42 | B44: 6.527282545e-05 | C44: 0.4946852523
A45: 43 | B45: 6.133622313e-05 | C45: 0.4947465885
A46: 44 | B46: 5.775785826e-05 | C46: 0.4948043463
A47: 45 | B47: 5.450003133e-05 | C47: 0.4948588464
A48: 46 | B48: 5.152965299e-05 | C48: 0.494910376
A49: 47 | B49: 4.881761448e-05 | C49: 0.4949591936
A50: 48 | B50: 4.633825324e-05 | C50: 0.4950055319
A51: 49 | B51: 4.406889814e-05 | C51: 0.4950496008
A52: 50 | B52: 4.198948104e-05 | C52: 0.4950915903
A53: 51 | B53: 4.008220446e-05 | C53: 0.4951316725
A54: 52 | B54: 3.833125627e-05 | C54: 0.4951700037
A55: 53 | B55: 3.672256427e-05 | C55: 0.4952067263
A56: 54 | B56: 3.524358449e-05 | C56: 0.4952419699
A57: 55 | B57: 3.388311822e-05 | C57: 0.495275853
A58: 56 | B58: 3.263115353e-05 | C58: 0.4953084841
A59: 57 | B59: 3.147872762e-05 | C59: 0.4953399629
A60: 58 | B60: 3.041780715e-05 | C60: 0.4953703807
A61: 59 | B61: 2.944118389e-05 | C61: 0.4953998219
A62: 60 | B62: 2.854238366e-05 | C62: 0.4954283642
A63: 61 | B63: 2.771558661e-05 | C63: 0.4954560798
A64: 62 | B64: 2.695555744e-05 | C64: 0.4954830354
A65: 63 | B65: 2.625758418e-05 | C65: 0.495509293
A66: 64 | B66: 2.56174243e-05 | C66: 0.4955349104
A67: 65 | B67: 2.503125743e-05 | C67: 0.4955599417
A68: 66 | B68: 2.44956436e-05 | C68: 0.4955844373
A69: 67 | B69: 2.40074865e-05 | C69: 0.4956084448
A70: 68 | B70: 2.356400099e-05 | C70: 0.4956320088
A71: 69 | B71: 2.316268447e-05 | C71: 0.4956551715
A72: 70 | B72: 2.280129154e-05 | C72: 0.4956779728
A73: 71 | B73: 2.247781163e-05 | C73: 0.4957004506
A74: 72 | B74: 2.219044923e-05 | C74: 0.495722641
A75: 73 | B75: 2.193760643e-05 | C75: 0.4957445786
A76: 74 | B76: 2.171786748e-05 | C76: 0.4957662965
A77: 75 | B77: 2.152998527e-05 | C77: 0.4957878265
A78: 76 | B78: 2.137286936e-05 | C78: 0.4958091994
A79: 77 | B79: 2.12455755e-05 | C79: 0.4958304449
A80: 78 | B80: 2.11472965e-05 | C80: 0.4958515922
A81: 79 | B81: 2.107735426e-05 | C81: 0.4958726696
A82: 80 | B82: 2.103519293e-05 | C82: 0.4958937048
A83: 81 | B83: 2.102037298e-05 | C83: 0.4959147251
A84: 82 | B84: 2.103256631e-05 | C84: 0.4959357577
A85: 83 | B85: 2.107155206e-05 | C85: 0.4959568293
A86: 84 | B86: 2.113721327e-05 | C86: 0.4959779665
A87: 85 | B87: 2.122953426e-05 | C87: 0.495999196
A88: 86 | B88: 2.134859869e-05 | C88: 0.4960205446
A89: 87 | B89: 2.149458823e-05 | C89: 0.4960420392
A90: 88 | B90: 2.16677819e-05 | C90: 0.496063707
A91: 89 | B91: 2.186855597e-05 | C91: 0.4960855755
A92: 90 | B92: 2.209738446e-05 | C92: 0.4961076729
A93: 91 | B93: 2.235484015e-05 | C93: 0.4961300278
A94: 92 | B94: 2.264159622e-05 | C94: 0.4961526694
A95: 93 | B95: 2.295842836e-05 | C95: 0.4961756278
A96: 94 | B96: 2.330621751e-05 | C96: 0.496198934
A97: 95 | B97: 2.368595312e-05 | C97: 0.49622262
A98: 96 | B98: 2.409873694e-05 | C98: 0.4962467187
A99: 97 | B99: 2.454578746e-05 | C99: 0.4962712645
A100: 98 | B100: 2.502844491e-05 | C100: 0.4962962929
A101: 99 | B101: 2.554817686e-05 | C101: 0.4963218411
A102: 100 | B102: 2.610658449e-05 | C102: 0.4963479477
A103: 101 | B103: 2.670540952e-05 | C103: 0.4963746531
A104: 102 | B104: 2.734654182e-05 | C104: 0.4964019996
A105: 103 | B105: 2.80320278e-05 | C105: 0.4964300317
A106: 104 | B106: 2.876407953e-05 | C106: 0.4964587957
A107: 105 | B107: 2.954508471e-05 | C107: 0.4964883408
A108: 106 | B108: 3.03776175e-05 | C108: 0.4965187184
A109: 107 | B109: 3.126445028e-05 | C109: 0.4965499829
A110: 108 | B110: 3.220856636e-05 | C110: 0.4965821915
A111: 109 | B111: 3.321317381e-05 | C111: 0.4966154046
A112: 110 | B112: 3.42817203e-05 | C112: 0.4966496864
A113: 111 | B113: 3.541790918e-05 | C113: 0.4966851043
A114: 112 | B114: 3.662571686e-05 | C114: 0.49672173
A115: 113 | B115: 3.790941145e-05 | C115: 0.4967596394
A116: 114 | B116: 3.927357293e-05 | C116: 0.496798913
A117: 115 | B117: 4.072311475e-05 | C117: 0.4968396361
A118: 116 | B118: 4.226330723e-05 | C118: 0.4968818994
A119: 117 | B119: 4.389980254e-05 | C119: 0.4969257992
A120: 118 | B120: 4.563866167e-05 | C120: 0.4969714379
A121: 119 | B121: 4.748638334e-05 | C121: 0.4970189242
A122: 120 | B122: 4.944993507e-05 | C122: 0.4970683742
A123: 121 | B123: 5.153678652e-05 | C123: 0.497119911
A124: 122 | B124: 5.375494524e-05 | C124: 0.4971736659
A125: 123 | B125: 5.6112995e-05 | C125: 0.4972297789
A126: 124 | B126: 5.86201369e-05 | C126: 0.497288399
A127: 125 | B127: 6.128623338e-05 | C127: 0.4973496853
A128: 126 | B128: 6.412185534e-05 | C128: 0.4974138071
A129: 127 | B129: 6.713833259e-05 | C129: 0.4974809455
A130: 128 | B130: 7.034780781e-05 | C130: 0.4975512933
A131: 129 | B131: 7.376329417e-05 | C131: 0.4976250566
A132: 130 | B132: 7.7398737e-05 | C132: 0.4977024553
A133: 131 | B133: 8.126907952e-05 | C133: 0.4977837244
A134: 132 | B134: 8.539033304e-05 | C134: 0.4978691147
A135: 133 | B135: 8.977965178e-05 | C135: 0.4979588944
A136: 134 | B136: 9.445541259e-05 | C136: 0.4980533498
A137: 135 | B137: 9.943729981e-05 | C137: 0.4981527871
A138: 136 | B138: 0.0001047463955 | C138: 0.4982575335
A139: 137 | B139: 0.0001104052754 | C139: 0.4983679387
A140: 138 | B140: 0.0001164381106 | C140: 0.4984843769
A141: 139 | B141: 0.0001228707756 | C141: 0.4986072476
A142: 140 | B142: 0.0001297309626 | C142: 0.4987369786
A143: 141 | B143: 0.0001370483025 | C143: 0.4988740269
A144: 142 | B144: 0.0001448544927 | C144: 0.4990188814
A145: 143 | B145: 0.0001531834315 | C145: 0.4991720648
A146: 144 | B146: 0.0001620713606 | C146: 0.4993341362
A147: 145 | B147: 0.0001715570143 | C147: 0.4995056932
A148: 146 | B148: 0.0001816817759 | C148: 0.499687375
A149: 147 | B149: 0.0001924898421 | C149: 0.4998798648
A150: 148 | B150: 0.0002040283946 | C150: 0.5000838932
A151: 149 | B151: 0.000216347779 | C151: 0.500300241
A152: 150 | B152: 0.0002295016912 | C152: 0.5005297427
A153: 151 | B153: 0.0002435473702 | C153: 0.50077329
A154: 152 | B154: 0.0002585457981 | C154: 0.5010318358
A155: 153 | B155: 0.0002745619058 | C155: 0.5013063978
A156: 154 | B156: 0.0002916647846 | C156: 0.5015980625
A157: 155 | B157: 0.0003099279019 | C157: 0.5019079904
A158: 156 | B158: 0.0003294293211 | C158: 0.5022374198
A159: 157 | B159: 0.0003502519244 | C159: 0.5025876717
A160: 158 | B160: 0.0003724836357 | C160: 0.5029601553
A161: 159 | B161: 0.0003962176443 | C161: 0.503356373
A162: 160 | B162: 0.0004215526254 | C162: 0.5037779256
A163: 161 | B163: 0.0004485929567 | C163: 0.5042265185
A164: 162 | B164: 0.0004774489268 | C164: 0.5047039675
A165: 163 | B165: 0.0005082369348 | C165: 0.5052122044
A166: 164 | B166: 0.0005410796752 | C166: 0.5057532841
A167: 165 | B167: 0.0005761063069 | C167: 0.5063293904
A168: 166 | B168: 0.0006134525995 | C168: 0.506942843
A169: 167 | B169: 0.000653261054 | C169: 0.507596104
A170: 168 | B170: 0.0006956809922 | C170: 0.508291785
A171: 169 | B171: 0.0007408686083 | C171: 0.5090326536
A172: 170 | B172: 0.0007889869768 | C172: 0.5098216406
A173: 171 | B173: 0.0008402060098 | C173: 0.5106618466
A174: 172 | B174: 0.0008947023552 | C174: 0.511556549
A175: 173 | B175: 0.0009526592289 | C175: 0.5125092082
A176: 174 | B176: 0.00101426617 | C176: 0.5135234744
A177: 175 | B177: 0.00107971871 | C177: 0.5146031931
A178: 176 | B178: 0.001149217948 | C178: 0.515752411
A179: 177 | B179: 0.00122297002 | C179: 0.5169753811
A180: 178 | B180: 0.001301185441 | C180: 0.5182765665
A181: 179 | B181: 0.001384078333 | C181: 0.5196606448
A182: 180 | B182: 0.001471865493 | C182: 0.5211325103
A183: 181 | B183: 0.001564765318 | C183: 0.5226972756
A184: 182 | B184: 0.001662996556 | C184: 0.5243602722
A185: 183 | B185: 0.001766776877 | C185: 0.5261270491
A186: 184 | B186: 0.001876321255 | C186: 0.5280033703
A187: 185 | B187: 0.001991840133 | C187: 0.5299952105
A188: 186 | B188: 0.002113537384 | C188: 0.5321087479
A189: 187 | B189: 0.002241608039 | C189: 0.5343503559
A190: 188 | B190: 0.002376235773 | C190: 0.5367265917
A191: 189 | B191: 0.002517590157 | C191: 0.5392441818
A192: 190 | B192: 0.002665823657 | C192: 0.5419100055
A193: 191 | B193: 0.002821068381 | C193: 0.5447310739
A194: 192 | B194: 0.002983432585 | C194: 0.5477145064
A195: 193 | B195: 0.00315299692 | C195: 0.5508675034
A196: 194 | B196: 0.003329810465 | C196: 0.5541973138
A197: 195 | B197: 0.003513886524 | C197: 0.5577112004
A198: 196 | B198: 0.003705198233 | C198: 0.5614163986
A199: 197 | B199: 0.003903673997 | C199: 0.5653200726
A200: 198 | B200: 0.004109192786 | C200: 0.5694292654
... 122 more rows

Sheet SIR
A1: Cases | B1: Case Probability | C1: LIN Prob | D1: Cumulative
A2: 0 | B2: 0.3333333333 | C2: 0.3333333333 | D2: 0.3333333333 | E2: =B2-C2 -> 0 | K2: n | L2: 400
A3: 1 | B3: 0.07432160631 | C3: 0.07407407407 | D3: 0.4076549396 | E3: =B3-C3 -> 0.0002475322388 | K3: c | L3: 400
A4: 2 | B4: 0.03319774443 | C4: 0.0329218107 | D4: 0.4408526841 | E4: 0.0002759337345 | K4: init | L4: 1
A5: 3 | B5: 0.01856382723 | C5: 0.01828989483 | D5: 0.4594165113 | E5: 0.0002739324004 | K5: R0 | L5: 2
A6: 4 | B6: 0.0116428435 | C6: 0.01138037901 | D6: 0.4710593548 | E6: 0.0002624644976 | K6: rho | L6: =L5/L2 -> 0.005
A7: 5 | B7: 0.007834318764 | C7: 0.007586919338 | D7: 0.4788936736 | E7: 0.0002473994255 | K7: 158.0197266 | L7: 15.31075749
A8: 6 | B8: 0.005529864715 | C8: 0.005298800808 | D8: 0.4844235383 | E8: 0.0002310639079 | K8: avgDeter | L8: =L2*casefrac(L4*L5/L2,L5) -> 319.4046039
A9: 7 | B9: 0.004041467334 | C9: 0.003826911694 | D9: 0.4884650056 | E9: 0.0002145556396 | K9: avgLINMO | L9: =IF(L5<1,L4*L5/(1-L5),"N/A") -> N/A
A10: 8 | B10: 0.003033189356 | C10: 0.002834749403 | D10: 0.491498195 | E10: 0.0001984399532 | K10: avgKendall | L10: =IF(L2=L3,kendall(L2/L5,L4,L2),"N/A") -> 160.2023019
A11: 9 | B11: 0.002324827406 | C11: 0.00214181066 | D11: 0.4938230224 | E11: 0.0001830167461 | K11: fizzle | L11: =IF(L5>1,1/L5,1) -> 0.5
A12: 10 | B12: 0.001812659063 | C12: 0.001644218285 | D12: 0.4956356815 | E12: 0.0001684407779 | K12: avgWashburn | L12: =L11*L8 -> 159.7023019
A13: 11 | B13: 0.001433618988 | C13: 0.001278836444 | D13: 0.4970693004 | E13: 0.000154782544
A14: 12 | B14: 0.001147642605 | C14: 0.001005580793 | D14: 0.4982169431 | E14: 0.0001420618121
A15: 13 | B15: 0.0009283472935 | C15: 0.0007980799946 | D15: 0.4991452903 | E15: 0.0001302672989
A16: 14 | B16: 0.0007578327581 | C16: 0.0006384639957 | D16: 0.4999031231 | E16: 0.0001193687624
A17: 15 | B17: 0.0006236429069 | C17: 0.0005143182188 | D17: 0.500526766 | E17: 0.0001093246881
A18: 16 | B18: 0.0005169203534 | C18: 0.0004168330662 | D18: 0.5010436864 | E18: 0.0001000872872
A19: 17 | B19: 0.000431247551 | C19: 0.0003396417576 | D19: 0.5014749339 | E19: 9.160579338e-05
A20: 18 | B20: 0.0003618979236 | C20: 0.0002780692753 | D20: 0.5018368318 | E20: 8.382864834e-05
A21: 19 | B21: 0.0003053396823 | C21: 0.0002286347374 | D21: 0.5021421715 | E21: 7.67049449e-05
A22: 20 | B22: 0.0002588997519 | C22: 0.0001887143865 | D22: 0.5024010713 | E22: 7.018536545e-05
A23: 21 | B23: 0.0002205316586 | C23: 0.0001563088858 | D23: 0.5026216029 | E23: 6.422277285e-05
A24: 22 | B24: 0.0001886524072 | C24: 0.0001298798471 | D24: 0.5028102553 | E24: 5.877256015e-05
A25: 23 | B25: 0.0001620260385 | C25: 0.0001082332059 | D25: 0.5029722814 | E25: 5.379283261e-05
A26: 24 | B26: 0.0001396793297 | C26: 9.04348565e-05 | D26: 0.5031119607 | E26: 4.924447316e-05
A27: 25 | B27: 0.0001208399817 | C27: 7.574885416e-05 | D27: 0.5032328007 | E27: 4.509112757e-05
A28: 26 | B28: 0.000104890766 | C28: 6.359163065e-05 | D28: 0.5033376915 | E28: 4.129913536e-05
A29: 27 | B29: 9.133514574e-05 | C29: 5.349772103e-05 | D29: 0.5034290266 | E29: 3.783742472e-05
A30: 28 | B30: 7.97712494e-05 | C30: 4.509386447e-05 | D30: 0.5035087978 | E30: 3.467738494e-05
A31: 29 | B31: 6.987198928e-05 | C31: 3.807926333e-05 | D31: 0.5035786698 | E31: 3.179272595e-05
A32: 30 | B32: 6.136974797e-05 | C32: 3.221041629e-05 | D32: 0.5036400396 | E32: 2.915933168e-05
A33: 31 | B33: 5.404449261e-05 | C33: 2.728938047e-05 | D33: 0.5036940841 | E33: 2.675511214e-05
A34: 32 | B34: 4.771448367e-05 | C34: 2.315462585e-05 | D34: 0.5037417986 | E34: 2.455985781e-05
A35: 33 | B35: 4.222896346e-05 | C35: 1.96738651e-05 | D35: 0.5037840275 | E35: 2.255509836e-05
A36: 34 | B36: 3.7462367e-05 | C36: 1.673839952e-05 | D36: 0.5038214899 | E36: 2.072396748e-05
A37: 35 | B37: 3.330971135e-05 | C37: 1.425863663e-05 | D37: 0.5038547996 | E37: 1.905107473e-05
A38: 36 | B38: 2.96829038e-05 | C38: 1.216051892e-05 | D38: 0.5038844825 | E38: 1.752238488e-05
A39: 37 | B39: 2.650777031e-05 | C39: 1.038266528e-05 | D39: 0.5039109903 | E39: 1.612510503e-05
A40: 38 | B40: 2.37216524e-05 | C40: 8.874072889e-06 | D40: 0.5039347119 | E40: 1.484757952e-05
A41: 39 | B41: 2.127145481e-05 | C41: 7.59226236e-06 | D41: 0.5039559834 | E41: 1.367919245e-05
A42: 40 | B42: 1.911205239e-05 | C42: 6.501774813e-06 | D42: 0.5039750954 | E42: 1.261027758e-05
A43: 41 | B43: 1.720498511e-05 | C43: 5.572949839e-06 | D43: 0.5039923004 | E43: 1.163203527e-05
A44: 42 | B44: 1.551738463e-05 | C44: 4.780928544e-06 | D44: 0.5040078178 | E44: 1.073645609e-05
A45: 43 | B45: 1.402108833e-05 | C45: 4.104837639e-06 | D45: 0.5040218389 | E45: 9.916250693e-06
A46: 44 | B46: 1.269190532e-05 | C46: 3.527119749e-06 | D46: 0.5040345308 | E46: 9.164785574e-06
A47: 45 | B47: 1.150900647e-05 | C47: 3.0329822e-06 | D47: 0.5040460398 | E47: 8.47602427e-06
A48: 46 | B48: 1.045441576e-05 | C48: 2.609942129e-06 | D48: 0.5040564942 | E48: 7.844473634e-06
A49: 47 | B49: 9.512584949e-06 | C49: 2.247450167e-06 | D49: 0.5040660068 | E49: 7.265134782e-06
A50: 48 | B50: 8.670036731e-06 | C50: 1.936578375e-06 | D50: 0.5040746768 | E50: 6.733458356e-06
A51: 49 | B51: 7.915064656e-06 | C51: 1.66976091e-06 | D51: 0.5040825919 | E51: 6.245303746e-06
A52: 50 | B52: 7.237479998e-06 | C52: 1.44057804e-06 | D52: 0.5040898294 | E52: 5.796901958e-06
A53: 51 | B53: 6.628397726e-06 | C53: 1.243575915e-06 | D53: 0.5040964578 | E53: 5.384821811e-06
A54: 52 | B54: 6.080055073e-06 | C54: 1.074115885e-06 | D54: 0.5041025378 | E54: 5.005939189e-06
A55: 53 | B55: 5.585657366e-06 | C55: 9.282482953e-07 | D55: 0.5041081235 | E55: 4.657409071e-06
A56: 54 | B56: 5.139246721e-06 | C56: 8.026066069e-07 | D56: 0.5041132627 | E56: 4.336640115e-06
A57: 55 | B57: 4.735589964e-06 | C57: 6.943184139e-07 | D57: 0.5041179983 | E57: 4.04127155e-06
A58: 56 | B58: 4.370082749e-06 | C58: 6.009305571e-07 | D58: 0.5041223684 | E58: 3.769152192e-06
A59: 57 | B59: 4.038667368e-06 | C59: 5.203459996e-07 | D59: 0.5041264071 | E59: 3.518321368e-06
A60: 58 | B60: 3.737762155e-06 | C60: 4.507705458e-07 | D60: 0.5041301448 | E60: 3.286991609e-06
A61: 59 | B61: 3.464200721e-06 | C61: 3.906678063e-07 | D61: 0.504133609 | E61: 3.073532915e-06
A62: 60 | B62: 3.215179564e-06 | C62: 3.387210853e-07 | D62: 0.5041368242 | E62: 2.876458478e-06
A63: 61 | B63: 2.988212803e-06 | C63: 2.938010847e-07 | D63: 0.5041398124 | E63: 2.694411718e-06
A64: 62 | B64: 2.781093013e-06 | C64: 2.549385074e-07 | D64: 0.5041425935 | E64: 2.526154506e-06
A65: 63 | B65: 2.591857263e-06 | C65: 2.213007877e-07 | D65: 0.5041451854 | E65: 2.370556476e-06
A66: 64 | B66: 2.418757628e-06 | C66: 1.921723079e-07 | D66: 0.5041476041 | E66: 2.22658532e-06
A67: 65 | B67: 2.260235534e-06 | C67: 1.669375604e-07 | D67: 0.5041498644 | E67: =B67-C67 -> 2.093297974e-06
A68: 66 | B68: 2.114899416e-06 | C68: 1.450668021e-07 | D68: 0.5041519793 | E68: 1.969832614e-06
A69: 67 | B69: 1.981505209e-06 | C69: 1.261038214e-07 | D69: 0.5041539608 | E69: 1.855401388e-06
A70: 68 | B70: 1.858939313e-06 | C70: 1.096554969e-07 | D70: 0.5041558197 | E70: 1.749283816e-06
A71: 69 | B71: 1.746203668e-06 | C71: 9.538287666e-08 | D71: 0.5041575659 | E71: 1.650820792e-06
A72: 70 | B72: 1.642402686e-06 | C72: 8.299355152e-08 | D72: 0.5041592083 | E72: 1.559409134e-06
A73: 71 | B73: 1.546731769e-06 | C73: 7.223512817e-08 | D73: 0.5041607551 | E73: 1.474496641e-06
A74: 72 | B74: 1.458467225e-06 | C74: 6.288963975e-08 | D74: 0.5041622135 | E74: 1.395577585e-06
A75: 73 | B75: 1.376957386e-06 | C75: 5.476875534e-08 | D75: 0.5041635905 | E75: 1.322188631e-06
A76: 74 | B76: 1.301614786e-06 | C76: 4.770967132e-08 | D76: 0.5041648921 | E76: 1.253905115e-06
A77: 75 | B77: 1.23190925e-06 | C77: 4.157158495e-08 | D77: 0.504166124 | E77: 1.190337665e-06
A78: 76 | B78: 1.167361795e-06 | C78: 3.623266567e-08 | D78: 0.5041672914 | E78: 1.131129129e-06
A79: 77 | B79: 1.107539229e-06 | C79: 3.158745212e-08 | D79: 0.5041683989 | E79: 1.075951777e-06
A80: 78 | B80: 1.052049373e-06 | C80: 2.754461366e-08 | D80: 0.504169451 | E80: 1.024504759e-06
A81: 79 | B81: 1.000536811e-06 | C81: 2.402502414e-08 | D81: 0.5041704515 | E81: 9.765117869e-07
A82: 80 | B82: 9.52679133e-07 | C82: 2.096010337e-08 | D82: 0.5041714042 | E82: 9.317190296e-07
A83: 81 | B83: 9.081835816e-07 | C83: 1.82903883e-08 | D83: 0.5041723124 | E83: 8.898931933e-07
A84: 82 | B84: 8.667840751e-07 | C84: 1.596430144e-08 | D84: 0.5041731791 | E84: 8.508197736e-07
A85: 83 | B85: 8.282385523e-07 | C85: 1.393708856e-08 | D85: 0.5041740074 | E85: 8.143014637e-07
A86: 84 | B86: 7.92326606e-07 | C86: 1.216990216e-08 | D86: 0.5041747997 | E86: 7.801567038e-07
A87: 85 | B87: 7.588473688e-07 | C87: 1.062901016e-08 | D87: 0.5041755586 | E87: 7.482183587e-07
A88: 86 | B88: 7.276176248e-07 | C88: 9.285112323e-09 | D88: 0.5041762862 | E88: 7.183325125e-07
A89: 87 | B89: 6.984701188e-07 | C89: 8.112749656e-09 | D89: 0.5041769846 | E89: 6.903573691e-07
A90: 88 | B90: 6.712520434e-07 | C90: 7.089793707e-09 | D90: 0.5041776559 | E90: 6.641622497e-07
A91: 89 | B91: 6.458236824e-07 | C91: 6.197004869e-09 | D91: 0.5041783017 | E91: 6.396266775e-07
A92: 90 | B92: 6.220571929e-07 | C92: 5.417650167e-09 | D92: 0.5041789238 | E92: 6.166395428e-07
A93: 91 | B93: 5.998355126e-07 | C93: 4.737172368e-09 | D93: 0.5041795236 | E93: 5.950983402e-07
A94: 92 | B94: 5.790513766e-07 | C94: 4.142903433e-09 | D94: 0.5041801027 | E94: 5.749084731e-07
A95: 93 | B95: 5.596064333e-07 | C95: 3.623816242e-09 | D95: 0.5041806623 | E95: 5.559826171e-07
A96: 94 | B96: 5.414104485e-07 | C96: 3.170309414e-09 | D96: 0.5041812037 | E96: 5.382401391e-07
A97: 95 | B97: 5.243805873e-07 | C97: 2.774020737e-09 | D97: 0.5041817281 | E97: 5.216065666e-07
A98: 96 | B98: 5.084407674e-07 | C98: 2.427665341e-09 | D98: 0.5041822365 | E98: 5.060131021e-07
A99: 97 | B99: 4.935210747e-07 | C99: 2.124895287e-09 | D99: 0.50418273 | E99: 4.913961794e-07
A100: 98 | B100: 4.795572354e-07 | C100: 1.860177693e-09 | D100: 0.5041832096 | E100: 4.776970577e-07
A101: 99 | B101: 4.664901393e-07 | C101: 1.628688913e-09 | D101: 0.5041836761 | E101: 4.648614504e-07
A102: 100 | B102: 4.542654085e-07 | C102: 1.426222635e-09 | D102: 0.5041841303 | E102: 4.528391859e-07
A103: 101 | B103: 4.428330066e-07 | C103: 1.24911002e-09 | D103: 0.5041845732 | E103: 4.415838965e-07
A104: 102 | B104: 4.321468849e-07 | C104: 1.094150309e-09 | D104: 0.5041850053 | E104: 4.310527346e-07
A105: 103 | B105: 4.221646626e-07 | C105: 9.585504841e-10 | D105: 0.5041854275 | E105: 4.212061121e-07
A106: 104 | B106: 4.128473361e-07 | C106: 8.398728051e-10 | D106: 0.5041858403 | E106: 4.120074633e-07
A107: 105 | B107: 4.041590155e-07 | C107: 7.359891668e-10 | D107: 0.5041862445 | E107: 4.034230263e-07
A108: 106 | B108: 3.96066686e-07 | C108: 6.450413881e-10 | D108: 0.5041866406 | E108: 3.954216446e-07
A109: 107 | B109: 3.88539991e-07 | C109: 5.654066488e-10 | D109: 0.5041870291 | E109: 3.879745844e-07
A110: 108 | B110: 3.815510359e-07 | C110: 4.956673986e-10 | D110: 0.5041874106 | E110: 3.810553685e-07
A111: 109 | B111: 3.750742091e-07 | C111: 4.345851535e-10 | D111: 0.5041877857 | E111: 3.74639624e-07
A112: 110 | B112: 3.69086021e-07 | C112: 3.810776721e-10 | D112: 0.5041881548 | E112: 3.687049433e-07
A113: 111 | B113: 3.635649566e-07 | C113: 3.341990696e-10 | D113: 0.5041885184 | E113: 3.632307575e-07
A114: 112 | B114: 3.58491343e-07 | C114: 2.931224878e-10 | D114: 0.5041888769 | E114: 3.581982205e-07
A115: 113 | B115: 3.538472289e-07 | C115: 2.571249893e-10 | D115: 0.5041892307 | E115: 3.535901039e-07
A116: 114 | B116: 3.496162758e-07 | C116: 2.255743867e-10 | D116: 0.5041895803 | E116: 3.493907014e-07
A117: 115 | B117: 3.457836594e-07 | C117: 1.97917757e-10 | D117: 0.5041899261 | E117: 3.455857416e-07
A118: 116 | B118: 3.423359814e-07 | C118: 1.736714221e-10 | D118: 0.5041902684 | E118: 3.4216231e-07
A119: 117 | B119: 3.392611895e-07 | C119: 1.524122084e-10 | D119: 0.5041906077 | E119: 3.391087773e-07
A120: 118 | B120: 3.365485057e-07 | C120: 1.337698188e-10 | D120: 0.5041909443 | E120: 3.364147359e-07
A121: 119 | B121: 3.34188363e-07 | C121: 1.174201743e-10 | D121: 0.5041912784 | E121: 3.340709428e-07
A122: 120 | B122: 3.32172348e-07 | C122: 1.03079602e-10 | D122: 0.5041916106 | E122: 3.320692684e-07
A123: 121 | B123: 3.304931512e-07 | C123: 9.049975988e-11 | D123: 0.5041919411 | E123: 3.304026515e-07
A124: 122 | B124: 3.291445229e-07 | C124: 7.94632038e-11 | D124: 0.5041922703 | E124: 3.290650597e-07
A125: 123 | B125: 3.281212347e-07 | C125: 6.977951588e-11 | D125: 0.5041925984 | E125: 3.280514552e-07
A126: 124 | B126: 3.274190472e-07 | C126: 6.12819215e-11 | D126: 0.5041929258 | E126: 3.273577653e-07
A127: 125 | B127: 3.270346824e-07 | C127: 5.382433317e-11 | D127: 0.5041932528 | E127: 3.269808581e-07
A128: 126 | B128: 3.26965801e-07 | C128: 4.727876685e-11 | D128: 0.5041935798 | E128: 3.269185223e-07
A129: 127 | B129: 3.272109848e-07 | C129: 4.153308337e-11 | D129: 0.504193907 | E129: 3.271694517e-07
A130: 128 | B130: 3.277697231e-07 | C130: 3.648901382e-11 | D130: 0.5041942348 | E130: 3.277332341e-07
A131: 129 | B131: 3.286424047e-07 | C131: 3.206043265e-11 | D131: 0.5041945634 | E131: =B131-C131 -> 3.286103443e-07
A132: 130 | B132: 3.298303126e-07 | C132: 2.817184752e-11 | D132: 0.5041948933 | E132: 3.298021408e-07
A133: 131 | B133: 3.313356245e-07 | C133: 2.475707813e-11 | D133: 0.5041952246 | E133: 3.313108674e-07
A134: 132 | B134: 3.331614162e-07 | C134: 2.175810041e-11 | D134: 0.5041955577 | E134: 3.331396581e-07
A135: 133 | B135: 3.353116707e-07 | C135: 1.912403518e-11 | D135: 0.5041958931 | E135: 3.352925467e-07
A136: 134 | B136: 3.377912898e-07 | C136: 1.681026303e-11 | D136: 0.5041962309 | E136: 3.377744795e-07
A137: 135 | B137: 3.406061113e-07 | C137: 1.477764952e-11 | D137: 0.5041965715 | E137: 3.405913336e-07
A138: 136 | B138: 3.437629298e-07 | C138: 1.299186706e-11 | D138: 0.5041969152 | E138: 3.43749938e-07
A139: 137 | B139: 3.472695223e-07 | C139: 1.142280099e-11 | D139: 0.5041972625 | E139: 3.472580995e-07
A140: 138 | B140: 3.511346779e-07 | C140: 1.004402965e-11 | D140: 0.5041976136 | E140: 3.511246339e-07
A141: 139 | B141: 3.553682324e-07 | C141: 8.832368927e-12 | D141: 0.504197969 | E141: 3.553594e-07
A142: 140 | B142: 3.599811079e-07 | C142: 7.767473383e-12 | D142: 0.504198329 | E142: 3.599733405e-07
A143: 141 | B143: 3.649853572e-07 | C143: 6.831486762e-12 | D143: 0.504198694 | E143: 3.649785257e-07
A144: 142 | B144: 3.703942132e-07 | C144: 6.008735831e-12 | D144: 0.5041990644 | E144: 3.703882045e-07
A145: 143 | B145: 3.762221449e-07 | C145: 5.285462074e-12 | D145: 0.5041994406 | E145: 3.762168594e-07
A146: 144 | B146: 3.824849178e-07 | C146: 4.64958656e-12 | D146: 0.5041998231 | E146: 3.824802682e-07
A147: 145 | B147: 3.891996617e-07 | C147: 4.090503853e-12 | D147: 0.5042002123 | E147: 3.891955712e-07
A148: 146 | B148: 3.963849445e-07 | C148: 3.598901349e-12 | D148: 0.5042006086 | E148: 3.963813456e-07
A149: 147 | B149: 4.040608531e-07 | C149: 3.166600887e-12 | D149: 0.5042010127 | E149: 4.040576865e-07
A150: 148 | B150: 4.122490817e-07 | C150: 2.786419871e-12 | D150: 0.504201425 | E150: 4.122462953e-07
A151: 149 | B151: 4.209730282e-07 | C151: 2.452049486e-12 | D151: 0.5042018459 | E151: 4.209705761e-07
A152: 150 | B152: 4.302578989e-07 | C152: 2.157947892e-12 | D152: 0.5042022762 | E152: 4.302557409e-07
A153: 151 | B153: 4.401308228e-07 | C153: 1.899246537e-12 | D153: 0.5042027163 | E153: 4.401289235e-07
A154: 152 | B154: 4.506209751e-07 | C154: 1.671667976e-12 | D154: 0.5042031669 | E154: 4.506193034e-07
A155: 153 | B155: 4.617597117e-07 | C155: 1.471453774e-12 | D155: 0.5042036287 | E155: 4.617582403e-07
A156: 154 | B156: 4.73580715e-07 | C156: 1.295301243e-12 | D156: 0.5042041023 | E156: 4.735794197e-07
A157: 155 | B157: 4.861201515e-07 | C157: 1.140307932e-12 | D157: 0.5042045884 | E157: 4.861190112e-07
A158: 156 | B158: 4.994168436e-07 | C158: 1.003922907e-12 | D158: 0.5042050878 | E158: 4.994158396e-07
A159: 157 | B159: 5.135124543e-07 | C159: 8.839039939e-13 | D159: 0.5042056013 | E159: 5.135115704e-07
A160: 158 | B160: 5.284516886e-07 | C160: 7.782802462e-13 | D160: 0.5042061298 | E160: 5.284509103e-07
A161: 159 | B161: 5.442825108e-07 | C161: 6.853189946e-13 | D161: 0.5042066741 | E161: 5.442818255e-07
A162: 160 | B162: 5.610563799e-07 | C162: 6.0349692e-13 | D162: 0.5042072351 | E162: 5.610557764e-07
A163: 161 | B163: 5.788285043e-07 | C163: 5.314746538e-13 | D163: 0.5042078139 | E163: 5.788279729e-07
A164: 162 | B164: 5.976581187e-07 | C164: 4.680744736e-13 | D164: 0.5042084116 | E164: 5.976576507e-07
A165: 163 | B165: 6.176087823e-07 | C165: 4.122607152e-13 | D165: 0.5042090292 | E165: 6.1760837e-07
A166: 164 | B166: 6.387487027e-07 | C166: 3.631225694e-13 | D166: 0.504209668 | E166: 6.387483395e-07
A167: 165 | B167: 6.611510867e-07 | C167: 3.198589701e-13 | D167: 0.5042103291 | E167: 6.611507669e-07
A168: 166 | B168: 6.848945203e-07 | C168: 2.817653203e-13 | D168: 0.504211014 | E168: 6.848942386e-07
A169: 167 | B169: 7.100633797e-07 | C169: 2.482218298e-13 | D169: 0.5042117241 | E169: 7.100631315e-07
A170: 168 | B170: 7.367482773e-07 | C170: 2.186832688e-13 | D170: 0.5042124608 | E170: 7.367480587e-07
A171: 169 | B171: 7.650465453e-07 | C171: 1.92669965e-13 | D171: 0.5042132259 | E171: 7.650463526e-07
A172: 170 | B172: 7.950627587e-07 | C172: 1.697598911e-13 | D172: 0.5042140209 | E172: 7.950625889e-07
A173: 171 | B173: 8.269093037e-07 | C173: 1.495817129e-13 | D173: 0.5042148478 | E173: 8.269091541e-07
A174: 172 | B174: 8.607069932e-07 | C174: 1.31808677e-13 | D174: 0.5042157085 | E174: 8.607068614e-07
A175: 173 | B175: 8.965857346e-07 | C175: 1.161532403e-13 | D175: 0.5042166051 | E175: 8.965856184e-07
A176: 174 | B176: 9.346852542e-07 | C176: 1.023623476e-13 | D176: 0.5042175398 | E176: 9.346851519e-07
A177: 175 | B177: 9.751558834e-07 | C177: 9.021328109e-14 | D177: 0.504218515 | E177: 9.751557932e-07
A178: 176 | B178: 1.018159412e-06 | C178: 7.951001045e-14 | D178: 0.5042195331 | E178: 1.018159332e-06
A179: 177 | B179: 1.063870012e-06 | C179: 7.007998424e-14 | D179: 0.504220597 | E179: 1.063869942e-06
A180: 178 | B180: 1.11247525e-06 | C180: 6.177130827e-14 | D180: 0.5042217095 | E180: 1.112475188e-06
A181: 179 | B181: 1.164177168e-06 | C181: 5.445026433e-14 | D181: 0.5042228737 | E181: 1.164177114e-06
A182: 180 | B182: 1.219193481e-06 | C182: 4.799912804e-14 | D182: 0.5042240928 | E182: 1.219193433e-06
A183: 181 | B183: 1.277758859e-06 | C183: 4.231424963e-14 | D183: 0.5042253706 | E183: 1.277758817e-06
A184: 182 | B184: 1.340126329e-06 | C184: 3.730436579e-14 | D184: 0.5042267107 | E184: 1.340126291e-06
A185: 183 | B185: 1.406568797e-06 | C185: 3.288911477e-14 | D185: 0.5042281173 | E185: 1.406568764e-06
A186: 184 | B186: 1.477380705e-06 | C186: 2.899773002e-14 | D186: 0.5042295947 | E186: 1.477380676e-06
A187: 185 | B187: 1.552879829e-06 | C187: 2.556789098e-14 | D187: 0.5042311476 | E187: 1.552879804e-06
A188: 186 | B188: 1.633409236e-06 | C188: 2.254471195e-14 | D188: 0.504232781 | E188: 1.633409213e-06
A189: 187 | B189: 1.719339412e-06 | C189: 1.987985239e-14 | D189: 0.5042345003 | E189: 1.719339392e-06
A190: 188 | B190: 1.811070581e-06 | C190: 1.753073403e-14 | D190: 0.5042363114 | E190: 1.811070564e-06
A191: 189 | B191: 1.909035225e-06 | C191: 1.545985199e-14 | D191: 0.5042382204 | E191: 1.90903521e-06
A192: 190 | B192: 2.013700825e-06 | C192: 1.363416848e-14 | D192: 0.5042402341 | E192: 2.013700812e-06
A193: 191 | B193: 2.125572851e-06 | C193: 1.202457915e-14 | D193: 0.5042423597 | E193: 2.125572839e-06
A194: 192 | B194: 2.245198008e-06 | C194: 1.060544344e-14 | D194: 0.5042446049 | E194: 2.245197998e-06
A195: 193 | B195: 2.373167783e-06 | C195: 9.35417119e-15 | D195: 0.5042469781 | E195: =B195-C195 -> 2.373167774e-06
A196: 194 | B196: 2.510122296e-06 | C196: 8.250858691e-15 | D196: 0.5042494882 | E196: 2.510122288e-06
A197: 195 | B197: 2.656754499e-06 | C197: 7.277968324e-15 | D197: 0.5042521449 | E197: 2.656754492e-06
A198: 196 | B198: 2.813814753e-06 | C198: 6.420046508e-15 | D198: 0.5042549587 | E198: 2.813814746e-06
A199: 197 | B199: 2.982115809e-06 | C199: 5.663475371e-15 | D199: 0.5042579409 | E199: 2.982115804e-06
A200: 198 | B200: 3.162538243e-06 | C200: 4.996254096e-15 | D200: 0.5042611034 | E200: 3.162538238e-06
... 202 more rows
